Body Name,Body,Service division categorisation,Expense Type,Date paid,Transaction Reference,Net,Supplier Name,Redacted/Excluded
East Lindsey District Council,http://statistics.data.gov.uk/id/local-authority/32UC,Corporate Management,Telephones,04/09/2014,IJ00036191,37.88,BT PLC,
East Lindsey District Council,http://statistics.data.gov.uk/id/local-authority/32UC,Corporate Management,Telephones,04/09/2014,IJ00036191,3272.16,BT PLC,
East Lindsey District Council,http://statistics.data.gov.uk/id/local-authority/32UC,Economic & Tourism,Telephones,04/09/2014,IJ00036191,113.68,BT PLC,
East Lindsey District Council,http://statistics.data.gov.uk/id/local-authority/32UC,Leisure Operations,Telephones,04/09/2014,IJ00036191,8.83,BT PLC,
East Lindsey District Council,http://statistics.data.gov.uk/id/local-authority/32UC,Leisure Operations,Telephones,04/09/2014,IJ00036191,4.68,BT PLC,
East Lindsey District Council,http://statistics.data.gov.uk/id/local-authority/32UC,Theatre Manager,Telephones,04/09/2014,IJ00036191,55.00,BT PLC,
East Lindsey District Council,http://statistics.data.gov.uk/id/local-authority/32UC,Corporate Management,Telephones,04/09/2014,IJ00036191,236.09,BT PLC,
East Lindsey District Council,http://statistics.data.gov.uk/id/local-authority/32UC,Leisure Operations,Other agencies,04/09/2014,IJ00036163,7175.84,COMPETITION LINE (UK) LTD,
East Lindsey District Council,http://statistics.data.gov.uk/id/local-authority/32UC,Neighbourhood Services,Professional & Contractors Fees,04/09/2014,IJ00036071,400.00,SID DENNIS & SONS LTD,
East Lindsey District Council,http://statistics.data.gov.uk/id/local-authority/32UC,Neighbourhood Services,Professional & Contractors Fees,04/09/2014,IJ00036071,240.00,SID DENNIS & SONS LTD,
East Lindsey District Council,http://statistics.data.gov.uk/id/local-authority/32UC,Theatre Manager,Buildings Maintenance - Programmed,04/09/2014,IJ00036111,1635.00,FIELDSEND FLOORING LTD,
East Lindsey District Council,http://statistics.data.gov.uk/id/local-authority/32UC,Theatre Manager,Buildings Maintenance - Programmed,04/09/2014,IJ00036109,2809.27,GRS ELECTRICAL SERVICES LTD,
East Lindsey District Council,http://statistics.data.gov.uk/id/local-authority/32UC,Neighbourhood Services,Materials and Consumables,04/09/2014,IJ00036159,708.90,STOWLIN LTD,
East Lindsey District Council,http://statistics.data.gov.uk/id/local-authority/32UC,Neighbourhood Services,Materials and Consumables,04/09/2014,IJ00036096,806.70,STOWLIN LTD,
East Lindsey District Council,http://statistics.data.gov.uk/id/local-authority/32UC,Neighbourhood Services,Insurance,04/09/2014,IJ00036158,1216.80,ROYAL & SUN ALLIANCE INSURANCE,
East Lindsey District Council,http://statistics.data.gov.uk/id/local-authority/32UC,Theatre Manager,Performers and Entertainers Fees,04/09/2014,IJ00036054,2873.51,JANICE SUTTON,
East Lindsey District Council,http://statistics.data.gov.uk/id/local-authority/32UC,Theatre Manager,Performers and Entertainers Fees,04/09/2014,IJ00036054,-928.04,JANICE SUTTON,
East Lindsey District Council,http://statistics.data.gov.uk/id/local-authority/32UC,Corporate Management,Staff Training Expenses,04/09/2014,IJ00036175,1055.00,TREVOR ROBERTS ASSOCIATES LTD,
East Lindsey District Council,http://statistics.data.gov.uk/id/local-authority/32UC,Corporate Management,Staff Training Expenses,04/09/2014,IJ00036177,1055.00,TREVOR ROBERTS ASSOCIATES LTD,
East Lindsey District Council,http://statistics.data.gov.uk/id/local-authority/32UC,TL Property,Buildings Maintenance - Responsive,04/09/2014,IJ00036130,811.33,KENMOR BUILDING & CONSTRUCTION SERVICES,
East Lindsey District Council,http://statistics.data.gov.uk/id/local-authority/32UC,Neighbourhood Services,Professional & Contractors Fees,04/09/2014,IJ00036176,150.45,PHS GROUP PLC,
East Lindsey District Council,http://statistics.data.gov.uk/id/local-authority/32UC,Neighbourhood Services,Professional & Contractors Fees,04/09/2014,IJ00036176,49.05,PHS GROUP PLC,
East Lindsey District Council,http://statistics.data.gov.uk/id/local-authority/32UC,Neighbourhood Services,Professional & Contractors Fees,04/09/2014,IJ00036176,53.59,PHS GROUP PLC,
East Lindsey District Council,http://statistics.data.gov.uk/id/local-authority/32UC,Neighbourhood Services,Professional & Contractors Fees,04/09/2014,IJ00036176,68.29,PHS GROUP PLC,
East Lindsey District Council,http://statistics.data.gov.uk/id/local-authority/32UC,Neighbourhood Services,Professional & Contractors Fees,04/09/2014,IJ00036176,171.13,PHS GROUP PLC,
East Lindsey District Council,http://statistics.data.gov.uk/id/local-authority/32UC,Neighbourhood Services,Professional & Contractors Fees,04/09/2014,IJ00036176,214.42,PHS GROUP PLC,
East Lindsey District Council,http://statistics.data.gov.uk/id/local-authority/32UC,Neighbourhood Services,Professional & Contractors Fees,04/09/2014,IJ00036176,400.81,PHS GROUP PLC,
East Lindsey District Council,http://statistics.data.gov.uk/id/local-authority/32UC,Neighbourhood Services,Professional & Contractors Fees,04/09/2014,IJ00036176,164.10,PHS GROUP PLC,
East Lindsey District Council,http://statistics.data.gov.uk/id/local-authority/32UC,Neighbourhood Services,Professional & Contractors Fees,04/09/2014,IJ00036176,146.66,PHS GROUP PLC,
East Lindsey District Council,http://statistics.data.gov.uk/id/local-authority/32UC,Neighbourhood Services,Professional & Contractors Fees,04/09/2014,IJ00036176,420.18,PHS GROUP PLC,
East Lindsey District Council,http://statistics.data.gov.uk/id/local-authority/32UC,Neighbourhood Services,Professional & Contractors Fees,04/09/2014,IJ00036176,273.21,PHS GROUP PLC,
East Lindsey District Council,http://statistics.data.gov.uk/id/local-authority/32UC,Neighbourhood Services,Professional & Contractors Fees,04/09/2014,IJ00036176,236.44,PHS GROUP PLC,
East Lindsey District Council,http://statistics.data.gov.uk/id/local-authority/32UC,Neighbourhood Services,Professional & Contractors Fees,04/09/2014,IJ00036176,154.34,PHS GROUP PLC,
East Lindsey District Council,http://statistics.data.gov.uk/id/local-authority/32UC,Neighbourhood Services,Professional & Contractors Fees,04/09/2014,IJ00036176,283.58,PHS GROUP PLC,
East Lindsey District Council,http://statistics.data.gov.uk/id/local-authority/32UC,Neighbourhood Services,Professional & Contractors Fees,04/09/2014,IJ00036176,68.29,PHS GROUP PLC,
East Lindsey District Council,http://statistics.data.gov.uk/id/local-authority/32UC,Neighbourhood Services,Professional & Contractors Fees,04/09/2014,IJ00036176,69.52,PHS GROUP PLC,
East Lindsey District Council,http://statistics.data.gov.uk/id/local-authority/32UC,Neighbourhood Services,Professional & Contractors Fees,04/09/2014,IJ00036176,200.40,PHS GROUP PLC,
East Lindsey District Council,http://statistics.data.gov.uk/id/local-authority/32UC,Neighbourhood Services,Professional & Contractors Fees,04/09/2014,IJ00036176,92.50,PHS GROUP PLC,
East Lindsey District Council,http://statistics.data.gov.uk/id/local-authority/32UC,Neighbourhood Services,Professional & Contractors Fees,04/09/2014,IJ00036176,44.08,PHS GROUP PLC,
East Lindsey District Council,http://statistics.data.gov.uk/id/local-authority/32UC,Neighbourhood Services,Professional & Contractors Fees,04/09/2014,IJ00036176,53.60,PHS GROUP PLC,
East Lindsey District Council,http://statistics.data.gov.uk/id/local-authority/32UC,Neighbourhood Services,Professional & Contractors Fees,04/09/2014,IJ00036176,625.96,PHS GROUP PLC,
East Lindsey District Council,http://statistics.data.gov.uk/id/local-authority/32UC,Waste Services Manager,Other agencies,04/09/2014,IJ00036073,1051.33,GLASS RECYCLING (UK) LTD,
East Lindsey District Council,http://statistics.data.gov.uk/id/local-authority/32UC,Corporate Accounting,Professional & Contractors Fees,04/09/2014,IJ00036182,1772.91,THE RISK FACTOR LTD,
East Lindsey District Council,http://statistics.data.gov.uk/id/local-authority/32UC,Corporate Management,Lincolnshire Legal Services,04/09/2014,IJ00036030,17737.89,LINCOLNSHIRE COUNTY COUNCIL,
East Lindsey District Council,http://statistics.data.gov.uk/id/local-authority/32UC,Corporate Management,Lincolnshire Legal Services,04/09/2014,IJ00036030,1281.17,LINCOLNSHIRE COUNTY COUNCIL,
East Lindsey District Council,http://statistics.data.gov.uk/id/local-authority/32UC,Enforcement Team Leader,Professional & Contractors Fees,04/09/2014,IJ00036046,3832.00,LINCOLNSHIRE COUNTY COUNCIL,
East Lindsey District Council,http://statistics.data.gov.uk/id/local-authority/32UC,Leisure Operations,Other Miscellaneous Expenses,04/09/2014,IJ00036036,13.52,ESPO,
East Lindsey District Council,http://statistics.data.gov.uk/id/local-authority/32UC,Neighbourhood Services,Materials and Consumables,04/09/2014,IJ00036036,79.08,ESPO,
East Lindsey District Council,http://statistics.data.gov.uk/id/local-authority/32UC,Neighbourhood Services,Materials and Consumables,04/09/2014,IJ00036036,2053.23,ESPO,
East Lindsey District Council,http://statistics.data.gov.uk/id/local-authority/32UC,Leisure Operations,Cleaning Contract,04/09/2014,IJ00036036,6.95,ESPO,
East Lindsey District Council,http://statistics.data.gov.uk/id/local-authority/32UC,Leisure Operations,Stationery,04/09/2014,IJ00036036,120.24,ESPO,
East Lindsey District Council,http://statistics.data.gov.uk/id/local-authority/32UC,Leisure Operations,Furniture and Equipment,04/09/2014,IJ00036036,45.88,ESPO,
East Lindsey District Council,http://statistics.data.gov.uk/id/local-authority/32UC,Environment Team Leader,Stationery,04/09/2014,IJ00036036,27.80,ESPO,
East Lindsey District Council,http://statistics.data.gov.uk/id/local-authority/32UC,Hsg Advice & Homelessness TL,Furniture and Equipment,04/09/2014,IJ00036036,90.61,ESPO,
East Lindsey District Council,http://statistics.data.gov.uk/id/local-authority/32UC,Hsg Advice & Homelessness TL,Stationery,04/09/2014,IJ00036036,38.65,ESPO,
East Lindsey District Council,http://statistics.data.gov.uk/id/local-authority/32UC,Theatre Manager,Furniture and Equipment,04/09/2014,IJ00036041,1554.85,ESPO,
East Lindsey District Council,http://statistics.data.gov.uk/id/local-authority/32UC,Theatre Manager,Cleaning Contract,04/09/2014,IJ00036041,171.11,ESPO,
East Lindsey District Council,http://statistics.data.gov.uk/id/local-authority/32UC,Hsg Private Sector TL,Stationery,04/09/2014,IJ00036041,29.61,ESPO,
East Lindsey District Council,http://statistics.data.gov.uk/id/local-authority/32UC,Theatre Manager,Clothing Uniforms And Laundry,04/09/2014,IJ00036041,62.68,ESPO,
East Lindsey District Council,http://statistics.data.gov.uk/id/local-authority/32UC,Leisure Operations,Materials and Consumables,04/09/2014,IJ00036041,311.82,ESPO,
East Lindsey District Council,http://statistics.data.gov.uk/id/local-authority/32UC,Leisure Operations,Furniture and Equipment,04/09/2014,IJ00036041,4.68,ESPO,
East Lindsey District Council,http://statistics.data.gov.uk/id/local-authority/32UC,Leisure Operations,Furniture and Equipment,04/09/2014,IJ00036041,64.50,ESPO,
East Lindsey District Council,http://statistics.data.gov.uk/id/local-authority/32UC,Leisure Operations,Cleaning Contract,04/09/2014,IJ00036041,3.62,ESPO,
East Lindsey District Council,http://statistics.data.gov.uk/id/local-authority/32UC,Leisure Operations,Cleaning Contract,04/09/2014,IJ00036041,351.70,ESPO,
East Lindsey District Council,http://statistics.data.gov.uk/id/local-authority/32UC,Leisure Operations,Stationery,04/09/2014,IJ00036041,14.66,ESPO,
East Lindsey District Council,http://statistics.data.gov.uk/id/local-authority/32UC,Theatre Manager,Cleaning Contract,04/09/2014,IJ00036041,231.71,ESPO,
East Lindsey District Council,http://statistics.data.gov.uk/id/local-authority/32UC,Hsg Advice & Homelessness TL,Furniture and Equipment,04/09/2014,IJ00036041,11.16,ESPO,
East Lindsey District Council,http://statistics.data.gov.uk/id/local-authority/32UC,Hsg Advice & Homelessness TL,Stationery,04/09/2014,IJ00036041,6.51,ESPO,
East Lindsey District Council,http://statistics.data.gov.uk/id/local-authority/32UC,Leisure Operations,Gas,04/09/2014,IJ00036192,1204.27,ESPO,
East Lindsey District Council,http://statistics.data.gov.uk/id/local-authority/32UC,Leisure Operations,Gas,04/09/2014,IJ00036192,5627.83,ESPO,
East Lindsey District Council,http://statistics.data.gov.uk/id/local-authority/32UC,Leisure Operations,Gas,04/09/2014,IJ00036192,70.78,ESPO,
East Lindsey District Council,http://statistics.data.gov.uk/id/local-authority/32UC,Leisure Operations,Gas,04/09/2014,IJ00036192,48.42,ESPO,
East Lindsey District Council,http://statistics.data.gov.uk/id/local-authority/32UC,TL Property,Gas,04/09/2014,IJ00036192,11.83,ESPO,
East Lindsey District Council,http://statistics.data.gov.uk/id/local-authority/32UC,TL Property,Gas,04/09/2014,IJ00036192,369.21,ESPO,
East Lindsey District Council,http://statistics.data.gov.uk/id/local-authority/32UC,TL Property,Gas,04/09/2014,IJ00036192,35.26,ESPO,
East Lindsey District Council,http://statistics.data.gov.uk/id/local-authority/32UC,TL Property,Gas,04/09/2014,IJ00036192,1631.34,ESPO,
East Lindsey District Council,http://statistics.data.gov.uk/id/local-authority/32UC,TL Property,Gas,04/09/2014,IJ00036192,-1258.30,ESPO,
East Lindsey District Council,http://statistics.data.gov.uk/id/local-authority/32UC,Economic & Tourism,Gas,04/09/2014,IJ00036192,140.30,ESPO,
East Lindsey District Council,http://statistics.data.gov.uk/id/local-authority/32UC,Leisure Operations,Gas,04/09/2014,IJ00036192,133.90,ESPO,
East Lindsey District Council,http://statistics.data.gov.uk/id/local-authority/32UC,Economic & Tourism,Gas,04/09/2014,IJ00036192,149.23,ESPO,
East Lindsey District Council,http://statistics.data.gov.uk/id/local-authority/32UC,TL Property,Gas,04/09/2014,IJ00036192,96.50,ESPO,
East Lindsey District Council,http://statistics.data.gov.uk/id/local-authority/32UC,Leisure Operations,Gas,04/09/2014,IJ00036192,120.77,ESPO,
East Lindsey District Council,http://statistics.data.gov.uk/id/local-authority/32UC,TL Property,Gas,04/09/2014,IJ00036192,31.93,ESPO,
East Lindsey District Council,http://statistics.data.gov.uk/id/local-authority/32UC,Economic & Tourism,Gas,04/09/2014,IJ00036192,40.64,ESPO,
East Lindsey District Council,http://statistics.data.gov.uk/id/local-authority/32UC,Theatre Manager,Purchase Of Goods For Resale,04/09/2014,IJ00036067,501.10,DEE BEE,
East Lindsey District Council,http://statistics.data.gov.uk/id/local-authority/32UC,Waste Services Manager,Maintenance,04/09/2014,IJ00036076,1564.80,FREIGHT TRANSPORT ASSOCIATION,
East Lindsey District Council,http://statistics.data.gov.uk/id/local-authority/32UC,Leisure Operations,Purchase Of Goods For Resale,04/09/2014,IJ00036156,1052.94,SRS LEISURE,
East Lindsey District Council,http://statistics.data.gov.uk/id/local-authority/32UC,Waste Services Manager,Telephones,04/09/2014,IJ00036186,113.58,MULTIDATA (EUROPE),
East Lindsey District Council,http://statistics.data.gov.uk/id/local-authority/32UC,Enforcement Team Leader,Telephones,04/09/2014,IJ00036186,59.25,MULTIDATA (EUROPE),
East Lindsey District Council,http://statistics.data.gov.uk/id/local-authority/32UC,Information Technology,Telephones,04/09/2014,IJ00036186,29.00,MULTIDATA (EUROPE),
East Lindsey District Council,http://statistics.data.gov.uk/id/local-authority/32UC,Leisure Operations,Telephones,04/09/2014,IJ00036186,210.00,MULTIDATA (EUROPE),
East Lindsey District Council,http://statistics.data.gov.uk/id/local-authority/32UC,Leisure Operations,Internet Broadband Payments,04/09/2014,IJ00036186,172.83,MULTIDATA (EUROPE),
East Lindsey District Council,http://statistics.data.gov.uk/id/local-authority/32UC,Economic & Tourism,Internet Broadband Payments,04/09/2014,IJ00036186,75.00,MULTIDATA (EUROPE),
East Lindsey District Council,http://statistics.data.gov.uk/id/local-authority/32UC,Theatre Manager,Internet Broadband Payments,04/09/2014,IJ00036186,75.00,MULTIDATA (EUROPE),
East Lindsey District Council,http://statistics.data.gov.uk/id/local-authority/32UC,Information Technology,Internet Broadband Payments,04/09/2014,IJ00036186,833.26,MULTIDATA (EUROPE),
East Lindsey District Council,http://statistics.data.gov.uk/id/local-authority/32UC,TL Property,Internet Broadband Payments,04/09/2014,IJ00036186,75.00,MULTIDATA (EUROPE),
East Lindsey District Council,http://statistics.data.gov.uk/id/local-authority/32UC,Leisure Operations,Internet Broadband Payments,04/09/2014,IJ00036186,105.00,MULTIDATA (EUROPE),
East Lindsey District Council,http://statistics.data.gov.uk/id/local-authority/32UC,Leisure Operations,Internet Broadband Payments,04/09/2014,IJ00036186,150.00,MULTIDATA (EUROPE),
East Lindsey District Council,http://statistics.data.gov.uk/id/local-authority/32UC,Leisure Operations,Internet Broadband Payments,04/09/2014,IJ00036186,75.00,MULTIDATA (EUROPE),
East Lindsey District Council,http://statistics.data.gov.uk/id/local-authority/32UC,Waste Services Manager,Internet Broadband Payments,04/09/2014,IJ00036186,113.58,MULTIDATA (EUROPE),
East Lindsey District Council,http://statistics.data.gov.uk/id/local-authority/32UC,Information Technology,Internet Broadband Payments,04/09/2014,IJ00036186,353.58,MULTIDATA (EUROPE),
East Lindsey District Council,http://statistics.data.gov.uk/id/local-authority/32UC,Development Control,Banking Charges,04/09/2014,IJ00036193,4.64,CAPITA BUSINESS SERVICES LTD,
East Lindsey District Council,http://statistics.data.gov.uk/id/local-authority/32UC,Corporate Management,Banking Charges,04/09/2014,IJ00036193,51.14,CAPITA BUSINESS SERVICES LTD,
East Lindsey District Council,http://statistics.data.gov.uk/id/local-authority/32UC,Corporate Management,Banking Charges,04/09/2014,IJ00036193,2658.54,CAPITA BUSINESS SERVICES LTD,
East Lindsey District Council,http://statistics.data.gov.uk/id/local-authority/32UC,Corporate Management,Banking Charges,04/09/2014,IJ00036193,57.28,CAPITA BUSINESS SERVICES LTD,
East Lindsey District Council,http://statistics.data.gov.uk/id/local-authority/32UC,Corporate Management,Banking Charges,04/09/2014,IJ00036193,59.79,CAPITA BUSINESS SERVICES LTD,
East Lindsey District Council,http://statistics.data.gov.uk/id/local-authority/32UC,Corporate Accounting,Banking Charges,04/09/2014,IJ00036193,2016.30,CAPITA BUSINESS SERVICES LTD,
East Lindsey District Council,http://statistics.data.gov.uk/id/local-authority/32UC,Cultural & Related Services,Professional & Contractors Fees,04/09/2014,IJ00036028,2400.00,LAVA,
East Lindsey District Council,http://statistics.data.gov.uk/id/local-authority/32UC,Development Control,Other Private Contractors,04/09/2014,IJ00036040,6625.98,LGS LIMITED,
East Lindsey District Council,http://statistics.data.gov.uk/id/local-authority/32UC,Revenues & Benefits,Court Costs,04/09/2014,IJ00036081,1401.00,CENTRAL FINANCE UNIT,
East Lindsey District Council,http://statistics.data.gov.uk/id/local-authority/32UC,Revenues & Benefits,Court Costs,04/09/2014,IJ00036081,123.00,CENTRAL FINANCE UNIT,
East Lindsey District Council,http://statistics.data.gov.uk/id/local-authority/32UC,Corporate Accounting,Compass Point Business Services,04/09/2014,IJ00036080,423015.25,COMPASS POINT BUSINESS SERVICES,
East Lindsey District Council,http://statistics.data.gov.uk/id/local-authority/32UC,Theatre Manager,Performers and Entertainers Fees,04/09/2014,IJ00036063,-64.00,QDOS ENTERTAINMENT (PRODUCTIONS) LTD,
East Lindsey District Council,http://statistics.data.gov.uk/id/local-authority/32UC,Theatre Manager,Performers and Entertainers Fees,04/09/2014,IJ00036063,3359.48,QDOS ENTERTAINMENT (PRODUCTIONS) LTD,
East Lindsey District Council,http://statistics.data.gov.uk/id/local-authority/32UC,Theatre Manager,Performers and Entertainers Fees,04/09/2014,IJ00036064,-48.00,QDOS ENTERTAINMENT (PRODUCTIONS) LTD,
East Lindsey District Council,http://statistics.data.gov.uk/id/local-authority/32UC,Theatre Manager,Performers and Entertainers Fees,04/09/2014,IJ00036064,3189.03,QDOS ENTERTAINMENT (PRODUCTIONS) LTD,
East Lindsey District Council,http://statistics.data.gov.uk/id/local-authority/32UC,Theatre Manager,Purchase Of Goods For Resale,04/09/2014,IJ00036058,668.60,MOLSON COORS BREWERS LTD,
East Lindsey District Council,http://statistics.data.gov.uk/id/local-authority/32UC,Economic & Tourism,Professional & Contractors Fees,04/09/2014,IJ00035289,10840.00,GREENBOROUGH MANAGEMENT LIMITED,
East Lindsey District Council,http://statistics.data.gov.uk/id/local-authority/32UC,Economic & Tourism,Professional & Contractors Fees,04/09/2014,IJ00036162,11520.00,GREENBOROUGH MANAGEMENT LIMITED,
East Lindsey District Council,http://statistics.data.gov.uk/id/local-authority/32UC,Theatre Manager,Performers and Entertainers Fees,04/09/2014,IJ00036065,-25.00,DEREK BLOCK CONCERT PROMOTIONS LTD,
East Lindsey District Council,http://statistics.data.gov.uk/id/local-authority/32UC,Theatre Manager,Performers and Entertainers Fees,04/09/2014,IJ00036065,2191.02,DEREK BLOCK CONCERT PROMOTIONS LTD,
East Lindsey District Council,http://statistics.data.gov.uk/id/local-authority/32UC,TL Property,Cleaning Contract,04/09/2014,IJ00036149,3029.74,J TOMLINSON LTD,
East Lindsey District Council,http://statistics.data.gov.uk/id/local-authority/32UC,Hsg Private Sector TL,Other Income,04/09/2014,IJ00036188,-690.65,THM CONSTRUCTION,
East Lindsey District Council,http://statistics.data.gov.uk/id/local-authority/32UC,Hsg Private Sector TL,Grants and Contributions to Outside Bodies- No Service Recei,04/09/2014,IJ00036188,7735.25,THM CONSTRUCTION,
East Lindsey District Council,http://statistics.data.gov.uk/id/local-authority/32UC,Hsg Private Sector TL,Other Income,04/09/2014,IJ00036189,-347.40,THM CONSTRUCTION,
East Lindsey District Council,http://statistics.data.gov.uk/id/local-authority/32UC,Hsg Private Sector TL,Grants and Contributions to Outside Bodies- No Service Recei,04/09/2014,IJ00036189,3890.88,THM CONSTRUCTION,
East Lindsey District Council,http://statistics.data.gov.uk/id/local-authority/32UC,Theatre Manager,Performers and Entertainers Fees,04/09/2014,IJ00036061,-210.00,SWEENEY ENTERTAINMENTS,
East Lindsey District Council,http://statistics.data.gov.uk/id/local-authority/32UC,Theatre Manager,Performers and Entertainers Fees,04/09/2014,IJ00036061,3172.79,SWEENEY ENTERTAINMENTS,
East Lindsey District Council,http://statistics.data.gov.uk/id/local-authority/32UC,TL Property,Buildings Maintenance - Programmed,04/09/2014,IJ00036095,880.00,SAFE & SOUND SECURITY SYSTEMS LINKS LTD,
East Lindsey District Council,http://statistics.data.gov.uk/id/local-authority/32UC,Leisure Operations,Water and Sewerage Charges,04/09/2014,IJ00036115,948.22,ANGLIAN WATER,
East Lindsey District Council,http://statistics.data.gov.uk/id/local-authority/32UC,Neighbourhood Services,Water and Sewerage Charges,04/09/2014,IJ00036117,1520.20,ANGLIAN WATER,
East Lindsey District Council,http://statistics.data.gov.uk/id/local-authority/32UC,Leisure Operations,Water and Sewerage Charges,04/09/2014,IJ00036118,3601.31,ANGLIAN WATER,
East Lindsey District Council,http://statistics.data.gov.uk/id/local-authority/32UC,Neighbourhood Services,Water and Sewerage Charges,04/09/2014,IJ00036119,982.98,ANGLIAN WATER,
East Lindsey District Council,http://statistics.data.gov.uk/id/local-authority/32UC,TL Property,Water and Sewerage Charges,04/09/2014,IJ00036121,587.77,ANGLIAN WATER,
East Lindsey District Council,http://statistics.data.gov.uk/id/local-authority/32UC,Theatre Manager,Water and Sewerage Charges,04/09/2014,IJ00036122,1085.34,ANGLIAN WATER,
East Lindsey District Council,http://statistics.data.gov.uk/id/local-authority/32UC,Neighbourhood Services,Water and Sewerage Charges,04/09/2014,IJ00036123,808.91,ANGLIAN WATER,
East Lindsey District Council,http://statistics.data.gov.uk/id/local-authority/32UC,Economic & Tourism,Water and Sewerage Charges,04/09/2014,IJ00036124,11948.86,ANGLIAN WATER,
East Lindsey District Council,http://statistics.data.gov.uk/id/local-authority/32UC,Neighbourhood Services,Water and Sewerage Charges,04/09/2014,IJ00036129,1581.53,ANGLIAN WATER,
East Lindsey District Council,http://statistics.data.gov.uk/id/local-authority/32UC,Waste Services Manager,Materials and Consumables,04/09/2014,IJ00036187,720.00,ESE LTD,
East Lindsey District Council,http://statistics.data.gov.uk/id/local-authority/32UC,Neighbourhood Services,Materials and Consumables,04/09/2014,IJ00036034,14965.70,KRN HOUSE AND GARDEN PLANTS,
East Lindsey District Council,http://statistics.data.gov.uk/id/local-authority/32UC,Theatre Manager,Buildings Maintenance - Programmed,04/09/2014,IJ00036112,1460.00,CSH INTERIORS,
East Lindsey District Council,http://statistics.data.gov.uk/id/local-authority/32UC,Information Technology,Computer Hardware Purchase,04/09/2014,IJ00036078,2876.40,INFRASYS LTD,
East Lindsey District Council,http://statistics.data.gov.uk/id/local-authority/32UC,Theatre Manager,Performers and Entertainers Fees,04/09/2014,IJ00036062,-240.00,PRESTIGE PRODUCTIONS LTD,
East Lindsey District Council,http://statistics.data.gov.uk/id/local-authority/32UC,Theatre Manager,Performers and Entertainers Fees,04/09/2014,IJ00036062,3327.68,PRESTIGE PRODUCTIONS LTD,
East Lindsey District Council,http://statistics.data.gov.uk/id/local-authority/32UC,"Performance, Governance & Commissioning",Grants and Contributions to Outside Bodies- No Service Recei,04/09/2014,IJ00036045,1310.00,JACDOR COMMUNITY PRE SCHOOL NO 2 ACC,
East Lindsey District Council,http://statistics.data.gov.uk/id/local-authority/32UC,TL Property,Rent and Lease Payments,04/09/2014,IJ00036170,4468.71,Louth Education Community Interest Company,
East Lindsey District Council,http://statistics.data.gov.uk/id/local-authority/32UC,Information Technology,Professional & Contractors Fees,04/09/2014,IJ00036043,1950.00,ITB Ltd,
East Lindsey District Council,http://statistics.data.gov.uk/id/local-authority/32UC,Economic & Tourism,Other Miscellaneous Expenses,04/09/2014,IJ00036077,840.00,Peter Thorpe Financial Consultant,
East Lindsey District Council,http://statistics.data.gov.uk/id/local-authority/32UC,Theatre Manager,Performers and Entertainers Fees,04/09/2014,IJ00036059,3400.00,Rivieria Entertainments,
East Lindsey District Council,http://statistics.data.gov.uk/id/local-authority/32UC,Neighbourhood Services,Fuel & Oil,04/09/2014,IJ00036169,604.23,Fuel Card Services Ltd,
East Lindsey District Council,http://statistics.data.gov.uk/id/local-authority/32UC,Hsg Advice & Homelessness TL,Staff Training Expenses,04/09/2014,IJ00036152,1515.00,Shields Vocational Training,
East Lindsey District Council,http://statistics.data.gov.uk/id/local-authority/32UC,Leisure Operations,Grants and Contributions to Outside Bodies- No Service Recei,04/09/2014,IJ00036023,59411.27,TRENT BUILD LTD,
East Lindsey District Council,http://statistics.data.gov.uk/id/local-authority/32UC,Economic & Tourism,Other Miscellaneous Expenses,04/09/2014,IJ00036042,815.38,Exterion Media Limited,
East Lindsey District Council,http://statistics.data.gov.uk/id/local-authority/32UC,Waste Services Manager,Agency Staff,04/09/2014,IJ00036038,1743.25,BIBBY FACTORS YORKSHIRE LIMITED,
East Lindsey District Council,http://statistics.data.gov.uk/id/local-authority/32UC,Economic & Tourism,Grants and Contributions to Outside Bodies- No Service Recei,04/09/2014,IJ00036051,1051.92,P and R Equestrian Centre,
East Lindsey District Council,http://statistics.data.gov.uk/id/local-authority/32UC,Enforcement Team Leader,Other Miscellaneous Expenses,04/09/2014,IJ00036181,735.67,Chattertons McKinnells,
East Lindsey District Council,http://statistics.data.gov.uk/id/local-authority/32UC,Cultural & Related Services,Furniture and Equipment,04/09/2014,IJ00036153,680.00,SRP TOILET HIRE LTD,
East Lindsey District Council,http://statistics.data.gov.uk/id/local-authority/32UC,Economic & Tourism,Other Miscellaneous Expenses,04/09/2014,IJ00036178,752.00,M A Chapman,
East Lindsey District Council,http://statistics.data.gov.uk/id/local-authority/32UC,Theatre Manager,Performers and Entertainers Fees,04/09/2014,IJ00036060,2946.55,Newbirth Theatre Productions Ltd,
East Lindsey District Council,http://statistics.data.gov.uk/id/local-authority/32UC,Theatre Manager,Performers and Entertainers Fees,04/09/2014,IJ00036060,-535.00,Newbirth Theatre Productions Ltd,
East Lindsey District Council,http://statistics.data.gov.uk/id/local-authority/32UC,Economic & Tourism,Other Miscellaneous Expenses,04/09/2014,IJ00036179,1846.00,McKinnells Ltd,
East Lindsey District Council,http://statistics.data.gov.uk/id/local-authority/32UC,Waste Services Manager,Tyres,11/09/2014,IJ00036441,626.52,B A BUSH & SON LIMITED,
East Lindsey District Council,http://statistics.data.gov.uk/id/local-authority/32UC,Waste Services Manager,Tyres,11/09/2014,IJ00036445,1361.54,B A BUSH & SON LIMITED,
East Lindsey District Council,http://statistics.data.gov.uk/id/local-authority/32UC,Leisure Operations,Other agencies,11/09/2014,IJ00036215,4414.18,COMPETITION LINE (UK) LTD,
East Lindsey District Council,http://statistics.data.gov.uk/id/local-authority/32UC,Neighbourhood Services,Professional & Contractors Fees,11/09/2014,IJ00036296,560.00,SID DENNIS & SONS LTD,
East Lindsey District Council,http://statistics.data.gov.uk/id/local-authority/32UC,Neighbourhood Services,Professional & Contractors Fees,11/09/2014,IJ00036296,160.00,SID DENNIS & SONS LTD,
East Lindsey District Council,http://statistics.data.gov.uk/id/local-authority/32UC,TL Property,Buildings Maintenance - Responsive,11/09/2014,IJ00036363,517.34,HARLITE INSTALLATIONS LTD,
East Lindsey District Council,http://statistics.data.gov.uk/id/local-authority/32UC,TL Property,Buildings Maintenance - Responsive,11/09/2014,IJ00036363,54.06,HARLITE INSTALLATIONS LTD,
East Lindsey District Council,http://statistics.data.gov.uk/id/local-authority/32UC,TL Property,Buildings Maintenance - Responsive,11/09/2014,IJ00036363,79.05,HARLITE INSTALLATIONS LTD,
East Lindsey District Council,http://statistics.data.gov.uk/id/local-authority/32UC,TL Property,Buildings Maintenance - Responsive,11/09/2014,IJ00036363,109.60,HARLITE INSTALLATIONS LTD,
East Lindsey District Council,http://statistics.data.gov.uk/id/local-authority/32UC,TL Property,Buildings Maintenance - Responsive,11/09/2014,IJ00036363,78.01,HARLITE INSTALLATIONS LTD,
East Lindsey District Council,http://statistics.data.gov.uk/id/local-authority/32UC,TL Property,Buildings Maintenance - Responsive,11/09/2014,IJ00036363,158.26,HARLITE INSTALLATIONS LTD,
East Lindsey District Council,http://statistics.data.gov.uk/id/local-authority/32UC,TL Property,Buildings Maintenance - Responsive,11/09/2014,IJ00036363,855.04,HARLITE INSTALLATIONS LTD,
East Lindsey District Council,http://statistics.data.gov.uk/id/local-authority/32UC,Customer Services Manager,Payments to Bodies in Respect of Income Collected,11/09/2014,IJ00036240,70.25,F HUNT (COACH HIRE) LTD,
East Lindsey District Council,http://statistics.data.gov.uk/id/local-authority/32UC,Customer Services Manager,Payments to Bodies in Respect of Income Collected,11/09/2014,IJ00036240,267.70,F HUNT (COACH HIRE) LTD,
East Lindsey District Council,http://statistics.data.gov.uk/id/local-authority/32UC,Customer Services Manager,Payments to Bodies in Respect of Income Collected,11/09/2014,IJ00036240,169.70,F HUNT (COACH HIRE) LTD,
East Lindsey District Council,http://statistics.data.gov.uk/id/local-authority/32UC,Building Control,Buildings Maintenance - Responsive,11/09/2014,IJ00036356,756.80,MIDLANDS SIGNS (LEICESTER) LTD,
East Lindsey District Council,http://statistics.data.gov.uk/id/local-authority/32UC,Economic & Tourism,Other Miscellaneous Expenses,11/09/2014,IJ00036435,4000.00,HERITAGE TRUST OF LINCOLNSHIRE LTD,
East Lindsey District Council,http://statistics.data.gov.uk/id/local-authority/32UC,Leisure Operations,Materials and Consumables,11/09/2014,IJ00036217,1008.45,ABACUS LIGHTING LIMITED,
East Lindsey District Council,http://statistics.data.gov.uk/id/local-authority/32UC,Leisure Operations,Buildings Maintenance - Programmed,11/09/2014,IJ00036354,640.75,ABACUS LIGHTING LIMITED,
East Lindsey District Council,http://statistics.data.gov.uk/id/local-authority/32UC,Leisure Operations,Buildings Maintenance - Programmed,11/09/2014,IJ00036355,569.55,ABACUS LIGHTING LIMITED,
East Lindsey District Council,http://statistics.data.gov.uk/id/local-authority/32UC,Economic & Tourism,Other Miscellaneous Expenses,11/09/2014,IJ00036205,1820.00,LINCS FM PLC,
East Lindsey District Council,http://statistics.data.gov.uk/id/local-authority/32UC,Waste Services Manager,Telephones,11/09/2014,IJ00036367,134.79,VODAFONE CORPORATE LIMITED,
East Lindsey District Council,http://statistics.data.gov.uk/id/local-authority/32UC,Waste Services Manager,Telephones,11/09/2014,IJ00036367,2.72,VODAFONE CORPORATE LIMITED,
East Lindsey District Council,http://statistics.data.gov.uk/id/local-authority/32UC,Communications Manager,Telephones,11/09/2014,IJ00036367,52.39,VODAFONE CORPORATE LIMITED,
East Lindsey District Council,http://statistics.data.gov.uk/id/local-authority/32UC,Theatre Manager,Telephones,11/09/2014,IJ00036367,73.62,VODAFONE CORPORATE LIMITED,
East Lindsey District Council,http://statistics.data.gov.uk/id/local-authority/32UC,Development Control,Telephones,11/09/2014,IJ00036367,12.85,VODAFONE CORPORATE LIMITED,
East Lindsey District Council,http://statistics.data.gov.uk/id/local-authority/32UC,Enforcement Team Leader,Telephones,11/09/2014,IJ00036367,67.17,VODAFONE CORPORATE LIMITED,
East Lindsey District Council,http://statistics.data.gov.uk/id/local-authority/32UC,Enforcement Team Leader,Telephones,11/09/2014,IJ00036367,44.45,VODAFONE CORPORATE LIMITED,
East Lindsey District Council,http://statistics.data.gov.uk/id/local-authority/32UC,Building Control,Telephones,11/09/2014,IJ00036367,15.69,VODAFONE CORPORATE LIMITED,
East Lindsey District Council,http://statistics.data.gov.uk/id/local-authority/32UC,Hsg Private Sector TL,Telephones,11/09/2014,IJ00036367,37.01,VODAFONE CORPORATE LIMITED,
East Lindsey District Council,http://statistics.data.gov.uk/id/local-authority/32UC,Enforcement Team Leader,Telephones,11/09/2014,IJ00036367,271.09,VODAFONE CORPORATE LIMITED,
East Lindsey District Council,http://statistics.data.gov.uk/id/local-authority/32UC,Cultural & Related Services,Telephones,11/09/2014,IJ00036367,33.47,VODAFONE CORPORATE LIMITED,
East Lindsey District Council,http://statistics.data.gov.uk/id/local-authority/32UC,Hsg Advice & Homelessness TL,Telephones,11/09/2014,IJ00036367,21.84,VODAFONE CORPORATE LIMITED,
East Lindsey District Council,http://statistics.data.gov.uk/id/local-authority/32UC,Hsg Private Sector TL,Telephones,11/09/2014,IJ00036367,70.89,VODAFONE CORPORATE LIMITED,
East Lindsey District Council,http://statistics.data.gov.uk/id/local-authority/32UC,Hsg Advice & Homelessness TL,Telephones,11/09/2014,IJ00036367,86.98,VODAFONE CORPORATE LIMITED,
East Lindsey District Council,http://statistics.data.gov.uk/id/local-authority/32UC,Waste Services Manager,Telephones,11/09/2014,IJ00036367,29.92,VODAFONE CORPORATE LIMITED,
East Lindsey District Council,http://statistics.data.gov.uk/id/local-authority/32UC,Building Control,Telephones,11/09/2014,IJ00036367,200.85,VODAFONE CORPORATE LIMITED,
East Lindsey District Council,http://statistics.data.gov.uk/id/local-authority/32UC,Economic & Tourism,Telephones,11/09/2014,IJ00036367,2.81,VODAFONE CORPORATE LIMITED,
East Lindsey District Council,http://statistics.data.gov.uk/id/local-authority/32UC,Corporate Management,Telephones,11/09/2014,IJ00036367,61.94,VODAFONE CORPORATE LIMITED,
East Lindsey District Council,http://statistics.data.gov.uk/id/local-authority/32UC,Leisure Operations,Telephones,11/09/2014,IJ00036367,11.13,VODAFONE CORPORATE LIMITED,
East Lindsey District Council,http://statistics.data.gov.uk/id/local-authority/32UC,Leisure Operations,Telephones,11/09/2014,IJ00036367,7.14,VODAFONE CORPORATE LIMITED,
East Lindsey District Council,http://statistics.data.gov.uk/id/local-authority/32UC,Leisure Operations,Telephones,11/09/2014,IJ00036367,70.80,VODAFONE CORPORATE LIMITED,
East Lindsey District Council,http://statistics.data.gov.uk/id/local-authority/32UC,Leisure Operations,Telephones,11/09/2014,IJ00036367,14.93,VODAFONE CORPORATE LIMITED,
East Lindsey District Council,http://statistics.data.gov.uk/id/local-authority/32UC,Neighbourhood Services,Telephones,11/09/2014,IJ00036367,177.63,VODAFONE CORPORATE LIMITED,
East Lindsey District Council,http://statistics.data.gov.uk/id/local-authority/32UC,Neighbourhood Services,Telephones,11/09/2014,IJ00036367,10.47,VODAFONE CORPORATE LIMITED,
East Lindsey District Council,http://statistics.data.gov.uk/id/local-authority/32UC,TL Property,Telephones,11/09/2014,IJ00036367,119.95,VODAFONE CORPORATE LIMITED,
East Lindsey District Council,http://statistics.data.gov.uk/id/local-authority/32UC,Neighbourhood Services,Telephones,11/09/2014,IJ00036367,15.31,VODAFONE CORPORATE LIMITED,
East Lindsey District Council,http://statistics.data.gov.uk/id/local-authority/32UC,Economic & Tourism,Telephones,11/09/2014,IJ00036367,21.60,VODAFONE CORPORATE LIMITED,
East Lindsey District Council,http://statistics.data.gov.uk/id/local-authority/32UC,"Performance, Governance & Commissioning",Telephones,11/09/2014,IJ00036367,158.48,VODAFONE CORPORATE LIMITED,
East Lindsey District Council,http://statistics.data.gov.uk/id/local-authority/32UC,Enforcement Team Leader,Telephones,11/09/2014,IJ00036367,6.75,VODAFONE CORPORATE LIMITED,
East Lindsey District Council,http://statistics.data.gov.uk/id/local-authority/32UC,Environment Team Leader,Telephones,11/09/2014,IJ00036367,137.46,VODAFONE CORPORATE LIMITED,
East Lindsey District Council,http://statistics.data.gov.uk/id/local-authority/32UC,Cultural & Related Services,Telephones,11/09/2014,IJ00036367,46.38,VODAFONE CORPORATE LIMITED,
East Lindsey District Council,http://statistics.data.gov.uk/id/local-authority/32UC,Cultural & Related Services,Telephones,11/09/2014,IJ00036367,15.90,VODAFONE CORPORATE LIMITED,
East Lindsey District Council,http://statistics.data.gov.uk/id/local-authority/32UC,Cultural & Related Services,Telephones,11/09/2014,IJ00036367,23.55,VODAFONE CORPORATE LIMITED,
East Lindsey District Council,http://statistics.data.gov.uk/id/local-authority/32UC,Cultural & Related Services,Telephones,11/09/2014,IJ00036367,4.33,VODAFONE CORPORATE LIMITED,
East Lindsey District Council,http://statistics.data.gov.uk/id/local-authority/32UC,Hsg Private Sector TL,Telephones,11/09/2014,IJ00036367,83.68,VODAFONE CORPORATE LIMITED,
East Lindsey District Council,http://statistics.data.gov.uk/id/local-authority/32UC,"Performance, Governance & Commissioning",Telephones,11/09/2014,IJ00036367,12.85,VODAFONE CORPORATE LIMITED,
East Lindsey District Council,http://statistics.data.gov.uk/id/local-authority/32UC,Planning Policy,Telephones,11/09/2014,IJ00036367,31.15,VODAFONE CORPORATE LIMITED,
East Lindsey District Council,http://statistics.data.gov.uk/id/local-authority/32UC,Economic & Tourism,Telephones,11/09/2014,IJ00036367,108.31,VODAFONE CORPORATE LIMITED,
East Lindsey District Council,http://statistics.data.gov.uk/id/local-authority/32UC,Cultural & Related Services,Telephones,11/09/2014,IJ00036367,164.91,VODAFONE CORPORATE LIMITED,
East Lindsey District Council,http://statistics.data.gov.uk/id/local-authority/32UC,Neighbourhood Services,Telephones,11/09/2014,IJ00036367,71.67,VODAFONE CORPORATE LIMITED,
East Lindsey District Council,http://statistics.data.gov.uk/id/local-authority/32UC,Neighbourhood Services,Telephones,11/09/2014,IJ00036367,32.05,VODAFONE CORPORATE LIMITED,
East Lindsey District Council,http://statistics.data.gov.uk/id/local-authority/32UC,Neighbourhood Services,Telephones,11/09/2014,IJ00036367,203.51,VODAFONE CORPORATE LIMITED,
East Lindsey District Council,http://statistics.data.gov.uk/id/local-authority/32UC,Theatre Manager,Telephones,11/09/2014,IJ00036367,2.81,VODAFONE CORPORATE LIMITED,
East Lindsey District Council,http://statistics.data.gov.uk/id/local-authority/32UC,Enforcement Team Leader,Telephones,11/09/2014,IJ00036367,13.50,VODAFONE CORPORATE LIMITED,
East Lindsey District Council,http://statistics.data.gov.uk/id/local-authority/32UC,Enforcement Team Leader,Telephones,11/09/2014,IJ00036367,6.75,VODAFONE CORPORATE LIMITED,
East Lindsey District Council,http://statistics.data.gov.uk/id/local-authority/32UC,Enforcement Team Leader,Telephones,11/09/2014,IJ00036367,6.75,VODAFONE CORPORATE LIMITED,
East Lindsey District Council,http://statistics.data.gov.uk/id/local-authority/32UC,Enforcement Team Leader,Telephones,11/09/2014,IJ00036367,33.75,VODAFONE CORPORATE LIMITED,
East Lindsey District Council,http://statistics.data.gov.uk/id/local-authority/32UC,Enforcement Team Leader,Telephones,11/09/2014,IJ00036367,6.75,VODAFONE CORPORATE LIMITED,
East Lindsey District Council,http://statistics.data.gov.uk/id/local-authority/32UC,Enforcement Team Leader,Telephones,11/09/2014,IJ00036367,6.75,VODAFONE CORPORATE LIMITED,
East Lindsey District Council,http://statistics.data.gov.uk/id/local-authority/32UC,Enforcement Team Leader,Telephones,11/09/2014,IJ00036367,20.25,VODAFONE CORPORATE LIMITED,
East Lindsey District Council,http://statistics.data.gov.uk/id/local-authority/32UC,Enforcement Team Leader,Telephones,11/09/2014,IJ00036367,6.75,VODAFONE CORPORATE LIMITED,
East Lindsey District Council,http://statistics.data.gov.uk/id/local-authority/32UC,Enforcement Team Leader,Telephones,11/09/2014,IJ00036367,13.50,VODAFONE CORPORATE LIMITED,
East Lindsey District Council,http://statistics.data.gov.uk/id/local-authority/32UC,Enforcement Team Leader,Telephones,11/09/2014,IJ00036367,6.75,VODAFONE CORPORATE LIMITED,
East Lindsey District Council,http://statistics.data.gov.uk/id/local-authority/32UC,Enforcement Team Leader,Telephones,11/09/2014,IJ00036367,6.75,VODAFONE CORPORATE LIMITED,
East Lindsey District Council,http://statistics.data.gov.uk/id/local-authority/32UC,Enforcement Team Leader,Telephones,11/09/2014,IJ00036367,6.75,VODAFONE CORPORATE LIMITED,
East Lindsey District Council,http://statistics.data.gov.uk/id/local-authority/32UC,Enforcement Team Leader,Telephones,11/09/2014,IJ00036367,6.75,VODAFONE CORPORATE LIMITED,
East Lindsey District Council,http://statistics.data.gov.uk/id/local-authority/32UC,Enforcement Team Leader,Telephones,11/09/2014,IJ00036367,13.50,VODAFONE CORPORATE LIMITED,
East Lindsey District Council,http://statistics.data.gov.uk/id/local-authority/32UC,Enforcement Team Leader,Telephones,11/09/2014,IJ00036367,6.75,VODAFONE CORPORATE LIMITED,
East Lindsey District Council,http://statistics.data.gov.uk/id/local-authority/32UC,Enforcement Team Leader,Telephones,11/09/2014,IJ00036367,6.75,VODAFONE CORPORATE LIMITED,
East Lindsey District Council,http://statistics.data.gov.uk/id/local-authority/32UC,Enforcement Team Leader,Telephones,11/09/2014,IJ00036367,6.75,VODAFONE CORPORATE LIMITED,
East Lindsey District Council,http://statistics.data.gov.uk/id/local-authority/32UC,Enforcement Team Leader,Telephones,11/09/2014,IJ00036367,6.75,VODAFONE CORPORATE LIMITED,
East Lindsey District Council,http://statistics.data.gov.uk/id/local-authority/32UC,Enforcement Team Leader,Telephones,11/09/2014,IJ00036367,13.50,VODAFONE CORPORATE LIMITED,
East Lindsey District Council,http://statistics.data.gov.uk/id/local-authority/32UC,Enforcement Team Leader,Telephones,11/09/2014,IJ00036367,13.50,VODAFONE CORPORATE LIMITED,
East Lindsey District Council,http://statistics.data.gov.uk/id/local-authority/32UC,Enforcement Team Leader,Telephones,11/09/2014,IJ00036367,6.75,VODAFONE CORPORATE LIMITED,
East Lindsey District Council,http://statistics.data.gov.uk/id/local-authority/32UC,Enforcement Team Leader,Telephones,11/09/2014,IJ00036367,6.75,VODAFONE CORPORATE LIMITED,
East Lindsey District Council,http://statistics.data.gov.uk/id/local-authority/32UC,Enforcement Team Leader,Telephones,11/09/2014,IJ00036367,20.25,VODAFONE CORPORATE LIMITED,
East Lindsey District Council,http://statistics.data.gov.uk/id/local-authority/32UC,Enforcement Team Leader,Telephones,11/09/2014,IJ00036367,13.50,VODAFONE CORPORATE LIMITED,
East Lindsey District Council,http://statistics.data.gov.uk/id/local-authority/32UC,Enforcement Team Leader,Telephones,11/09/2014,IJ00036367,6.75,VODAFONE CORPORATE LIMITED,
East Lindsey District Council,http://statistics.data.gov.uk/id/local-authority/32UC,Enforcement Team Leader,Telephones,11/09/2014,IJ00036367,13.50,VODAFONE CORPORATE LIMITED,
East Lindsey District Council,http://statistics.data.gov.uk/id/local-authority/32UC,Enforcement Team Leader,Telephones,11/09/2014,IJ00036367,13.50,VODAFONE CORPORATE LIMITED,
East Lindsey District Council,http://statistics.data.gov.uk/id/local-authority/32UC,Enforcement Team Leader,Telephones,11/09/2014,IJ00036367,6.75,VODAFONE CORPORATE LIMITED,
East Lindsey District Council,http://statistics.data.gov.uk/id/local-authority/32UC,Enforcement Team Leader,Telephones,11/09/2014,IJ00036367,20.25,VODAFONE CORPORATE LIMITED,
East Lindsey District Council,http://statistics.data.gov.uk/id/local-authority/32UC,Enforcement Team Leader,Telephones,11/09/2014,IJ00036367,6.75,VODAFONE CORPORATE LIMITED,
East Lindsey District Council,http://statistics.data.gov.uk/id/local-authority/32UC,Enforcement Team Leader,Telephones,11/09/2014,IJ00036367,13.50,VODAFONE CORPORATE LIMITED,
East Lindsey District Council,http://statistics.data.gov.uk/id/local-authority/32UC,Enforcement Team Leader,Telephones,11/09/2014,IJ00036367,6.75,VODAFONE CORPORATE LIMITED,
East Lindsey District Council,http://statistics.data.gov.uk/id/local-authority/32UC,Enforcement Team Leader,Telephones,11/09/2014,IJ00036367,13.50,VODAFONE CORPORATE LIMITED,
East Lindsey District Council,http://statistics.data.gov.uk/id/local-authority/32UC,Enforcement Team Leader,Telephones,11/09/2014,IJ00036367,13.50,VODAFONE CORPORATE LIMITED,
East Lindsey District Council,http://statistics.data.gov.uk/id/local-authority/32UC,Enforcement Team Leader,Telephones,11/09/2014,IJ00036367,6.75,VODAFONE CORPORATE LIMITED,
East Lindsey District Council,http://statistics.data.gov.uk/id/local-authority/32UC,Enforcement Team Leader,Telephones,11/09/2014,IJ00036367,6.75,VODAFONE CORPORATE LIMITED,
East Lindsey District Council,http://statistics.data.gov.uk/id/local-authority/32UC,Enforcement Team Leader,Telephones,11/09/2014,IJ00036367,6.75,VODAFONE CORPORATE LIMITED,
East Lindsey District Council,http://statistics.data.gov.uk/id/local-authority/32UC,Enforcement Team Leader,Telephones,11/09/2014,IJ00036367,6.75,VODAFONE CORPORATE LIMITED,
East Lindsey District Council,http://statistics.data.gov.uk/id/local-authority/32UC,Enforcement Team Leader,Telephones,11/09/2014,IJ00036367,6.75,VODAFONE CORPORATE LIMITED,
East Lindsey District Council,http://statistics.data.gov.uk/id/local-authority/32UC,Enforcement Team Leader,Telephones,11/09/2014,IJ00036367,6.75,VODAFONE CORPORATE LIMITED,
East Lindsey District Council,http://statistics.data.gov.uk/id/local-authority/32UC,Enforcement Team Leader,Telephones,11/09/2014,IJ00036367,6.75,VODAFONE CORPORATE LIMITED,
East Lindsey District Council,http://statistics.data.gov.uk/id/local-authority/32UC,Enforcement Team Leader,Telephones,11/09/2014,IJ00036367,13.50,VODAFONE CORPORATE LIMITED,
East Lindsey District Council,http://statistics.data.gov.uk/id/local-authority/32UC,Enforcement Team Leader,Telephones,11/09/2014,IJ00036367,6.75,VODAFONE CORPORATE LIMITED,
East Lindsey District Council,http://statistics.data.gov.uk/id/local-authority/32UC,Enforcement Team Leader,Telephones,11/09/2014,IJ00036367,6.75,VODAFONE CORPORATE LIMITED,
East Lindsey District Council,http://statistics.data.gov.uk/id/local-authority/32UC,Enforcement Team Leader,Telephones,11/09/2014,IJ00036367,6.75,VODAFONE CORPORATE LIMITED,
East Lindsey District Council,http://statistics.data.gov.uk/id/local-authority/32UC,Enforcement Team Leader,Telephones,11/09/2014,IJ00036367,6.75,VODAFONE CORPORATE LIMITED,
East Lindsey District Council,http://statistics.data.gov.uk/id/local-authority/32UC,Enforcement Team Leader,Telephones,11/09/2014,IJ00036367,13.50,VODAFONE CORPORATE LIMITED,
East Lindsey District Council,http://statistics.data.gov.uk/id/local-authority/32UC,Enforcement Team Leader,Telephones,11/09/2014,IJ00036367,6.75,VODAFONE CORPORATE LIMITED,
East Lindsey District Council,http://statistics.data.gov.uk/id/local-authority/32UC,Enforcement Team Leader,Telephones,11/09/2014,IJ00036367,6.75,VODAFONE CORPORATE LIMITED,
East Lindsey District Council,http://statistics.data.gov.uk/id/local-authority/32UC,Enforcement Team Leader,Telephones,11/09/2014,IJ00036367,6.75,VODAFONE CORPORATE LIMITED,
East Lindsey District Council,http://statistics.data.gov.uk/id/local-authority/32UC,Enforcement Team Leader,Telephones,11/09/2014,IJ00036367,6.75,VODAFONE CORPORATE LIMITED,
East Lindsey District Council,http://statistics.data.gov.uk/id/local-authority/32UC,Cultural & Related Services,Telephones,11/09/2014,IJ00036367,2.81,VODAFONE CORPORATE LIMITED,
East Lindsey District Council,http://statistics.data.gov.uk/id/local-authority/32UC,Hsg Advice & Homelessness TL,Telephones,11/09/2014,IJ00036367,127.10,VODAFONE CORPORATE LIMITED,
East Lindsey District Council,http://statistics.data.gov.uk/id/local-authority/32UC,Hsg Advice & Homelessness TL,Telephones,11/09/2014,IJ00036367,200.02,VODAFONE CORPORATE LIMITED,
East Lindsey District Council,http://statistics.data.gov.uk/id/local-authority/32UC,Environment Team Leader,Telephones,11/09/2014,IJ00036367,204.43,VODAFONE CORPORATE LIMITED,
East Lindsey District Council,http://statistics.data.gov.uk/id/local-authority/32UC,"Performance, Governance & Commissioning",Postages,11/09/2014,IJ00036298,890.42,ROYAL MAIL,
East Lindsey District Council,http://statistics.data.gov.uk/id/local-authority/32UC,"Performance, Governance & Commissioning",Chairman's Costs,11/09/2014,IJ00036388,585.00,L PETERSEN,
East Lindsey District Council,http://statistics.data.gov.uk/id/local-authority/32UC,Hsg Advice & Homelessness TL,Rent and Lease Payments,11/09/2014,IJ00036264,2580.57,LONGHURST HOMES,
East Lindsey District Council,http://statistics.data.gov.uk/id/local-authority/32UC,Economic & Tourism,Other Miscellaneous Expenses,11/09/2014,IJ00036226,1013.93,RBS INVOICE FINANCE LIMITED,
East Lindsey District Council,http://statistics.data.gov.uk/id/local-authority/32UC,TL Property,Electricity,11/09/2014,IJ00036364,3748.86,SOUTHERN ELECTRIC PLC,
East Lindsey District Council,http://statistics.data.gov.uk/id/local-authority/32UC,TL Property,Electricity,11/09/2014,IJ00036364,44.25,SOUTHERN ELECTRIC PLC,
East Lindsey District Council,http://statistics.data.gov.uk/id/local-authority/32UC,Neighbourhood Services,Electricity,11/09/2014,IJ00036364,32.17,SOUTHERN ELECTRIC PLC,
East Lindsey District Council,http://statistics.data.gov.uk/id/local-authority/32UC,Enforcement Team Leader,Electricity,11/09/2014,IJ00036364,3.80,SOUTHERN ELECTRIC PLC,
East Lindsey District Council,http://statistics.data.gov.uk/id/local-authority/32UC,Enforcement Team Leader,Electricity,11/09/2014,IJ00036364,15.82,SOUTHERN ELECTRIC PLC,
East Lindsey District Council,http://statistics.data.gov.uk/id/local-authority/32UC,Enforcement Team Leader,Electricity,11/09/2014,IJ00036364,15.82,SOUTHERN ELECTRIC PLC,
East Lindsey District Council,http://statistics.data.gov.uk/id/local-authority/32UC,Enforcement Team Leader,Electricity,11/09/2014,IJ00036364,12.88,SOUTHERN ELECTRIC PLC,
East Lindsey District Council,http://statistics.data.gov.uk/id/local-authority/32UC,Enforcement Team Leader,Electricity,11/09/2014,IJ00036364,18.42,SOUTHERN ELECTRIC PLC,
East Lindsey District Council,http://statistics.data.gov.uk/id/local-authority/32UC,Enforcement Team Leader,Electricity,11/09/2014,IJ00036364,34.95,SOUTHERN ELECTRIC PLC,
East Lindsey District Council,http://statistics.data.gov.uk/id/local-authority/32UC,Enforcement Team Leader,Electricity,11/09/2014,IJ00036364,42.84,SOUTHERN ELECTRIC PLC,
East Lindsey District Council,http://statistics.data.gov.uk/id/local-authority/32UC,Enforcement Team Leader,Electricity,11/09/2014,IJ00036364,12.11,SOUTHERN ELECTRIC PLC,
East Lindsey District Council,http://statistics.data.gov.uk/id/local-authority/32UC,Enforcement Team Leader,Electricity,11/09/2014,IJ00036364,31.37,SOUTHERN ELECTRIC PLC,
East Lindsey District Council,http://statistics.data.gov.uk/id/local-authority/32UC,Neighbourhood Services,Electricity,11/09/2014,IJ00036364,4.20,SOUTHERN ELECTRIC PLC,
East Lindsey District Council,http://statistics.data.gov.uk/id/local-authority/32UC,Enforcement Team Leader,Electricity,11/09/2014,IJ00036364,40.66,SOUTHERN ELECTRIC PLC,
East Lindsey District Council,http://statistics.data.gov.uk/id/local-authority/32UC,Leisure Operations,Electricity,11/09/2014,IJ00036360,2724.97,SOUTHERN ELECTRIC PLC,
East Lindsey District Council,http://statistics.data.gov.uk/id/local-authority/32UC,Customer Services Manager,Payments to Bodies in Respect of Income Collected,11/09/2014,IJ00036239,689.27,SKEGNESS STADIUM,
East Lindsey District Council,http://statistics.data.gov.uk/id/local-authority/32UC,Revenues & Benefits,Other Miscellaneous Expenses,11/09/2014,IJ00036411,4059.71,ALLPAY NET LTD,
East Lindsey District Council,http://statistics.data.gov.uk/id/local-authority/32UC,Revenues & Benefits,Other Miscellaneous Expenses,11/09/2014,IJ00036411,102.44,ALLPAY NET LTD,
East Lindsey District Council,http://statistics.data.gov.uk/id/local-authority/32UC,Hsg Advice & Homelessness TL,Grants and Contributions- Where a Service is Received,11/09/2014,IJ00036265,560.00,LIVES,
East Lindsey District Council,http://statistics.data.gov.uk/id/local-authority/32UC,BALANCE  SHEET,Payroll Sacrifice Nursery Voucher,11/09/2014,IJ00036430,2617.00,SODEXHO,
East Lindsey District Council,http://statistics.data.gov.uk/id/local-authority/32UC,Economic & Tourism,Professional & Contractors Fees,11/09/2014,IJ00036245,5791.63,COASTFIELDS,
East Lindsey District Council,http://statistics.data.gov.uk/id/local-authority/32UC,TL Property,Electricity,11/09/2014,IJ00036365,1988.48,E.ON ENERGY,
East Lindsey District Council,http://statistics.data.gov.uk/id/local-authority/32UC,Neighbourhood Services,Electricity,11/09/2014,IJ00036365,6.79,E.ON ENERGY,
East Lindsey District Council,http://statistics.data.gov.uk/id/local-authority/32UC,Enforcement Team Leader,Electricity,11/09/2014,IJ00036365,6.12,E.ON ENERGY,
East Lindsey District Council,http://statistics.data.gov.uk/id/local-authority/32UC,Enforcement Team Leader,Electricity,11/09/2014,IJ00036365,7.20,E.ON ENERGY,
East Lindsey District Council,http://statistics.data.gov.uk/id/local-authority/32UC,Enforcement Team Leader,Electricity,11/09/2014,IJ00036365,17.49,E.ON ENERGY,
East Lindsey District Council,http://statistics.data.gov.uk/id/local-authority/32UC,Enforcement Team Leader,Electricity,11/09/2014,IJ00036365,20.02,E.ON ENERGY,
East Lindsey District Council,http://statistics.data.gov.uk/id/local-authority/32UC,Enforcement Team Leader,Electricity,11/09/2014,IJ00036365,41.10,E.ON ENERGY,
East Lindsey District Council,http://statistics.data.gov.uk/id/local-authority/32UC,Enforcement Team Leader,Electricity,11/09/2014,IJ00036365,8.23,E.ON ENERGY,
East Lindsey District Council,http://statistics.data.gov.uk/id/local-authority/32UC,Enforcement Team Leader,Electricity,11/09/2014,IJ00036365,13.24,E.ON ENERGY,
East Lindsey District Council,http://statistics.data.gov.uk/id/local-authority/32UC,Enforcement Team Leader,Electricity,11/09/2014,IJ00036365,15.48,E.ON ENERGY,
East Lindsey District Council,http://statistics.data.gov.uk/id/local-authority/32UC,Cultural & Related Services,Other Miscellaneous Expenses,11/09/2014,IJ00036406,802.00,TSS EVENTS,
East Lindsey District Council,http://statistics.data.gov.uk/id/local-authority/32UC,Enforcement Team Leader,Payments to Bodies in Respect of Income Collected,11/09/2014,IJ00036235,1158.00,INNES ENGLAND COMMERCIAL PROPERTY,
East Lindsey District Council,http://statistics.data.gov.uk/id/local-authority/32UC,Enforcement Team Leader,Payments to Bodies in Respect of Income Collected,11/09/2014,IJ00036236,4923.41,INNES ENGLAND COMMERCIAL PROPERTY,
East Lindsey District Council,http://statistics.data.gov.uk/id/local-authority/32UC,Information Technology,Computer Software Licence Costs,11/09/2014,IJ00036230,1310.00,EXCITECH TECHNOLOGY FOR DESIGN,
East Lindsey District Council,http://statistics.data.gov.uk/id/local-authority/32UC,Planning Policy,Other Miscellaneous Expenses,11/09/2014,IJ00036378,508.80,LGS LIMITED,
East Lindsey District Council,http://statistics.data.gov.uk/id/local-authority/32UC,Neighbourhood Services,Agency Staff,11/09/2014,IJ00036271,2792.31,THE WORKSHOP (WISBECH) LIMITED,
East Lindsey District Council,http://statistics.data.gov.uk/id/local-authority/32UC,Neighbourhood Services,Agency Staff,11/09/2014,IJ00036271,2792.31,THE WORKSHOP (WISBECH) LIMITED,
East Lindsey District Council,http://statistics.data.gov.uk/id/local-authority/32UC,Neighbourhood Services,Agency Staff,11/09/2014,IJ00036272,2834.53,THE WORKSHOP (WISBECH) LIMITED,
East Lindsey District Council,http://statistics.data.gov.uk/id/local-authority/32UC,Neighbourhood Services,Agency Staff,11/09/2014,IJ00036272,2834.53,THE WORKSHOP (WISBECH) LIMITED,
East Lindsey District Council,http://statistics.data.gov.uk/id/local-authority/32UC,Neighbourhood Services,Materials and Consumables,11/09/2014,IJ00036405,667.28,COLLIER TURF CARE LIMITED,
East Lindsey District Council,http://statistics.data.gov.uk/id/local-authority/32UC,Customer Services Manager,Payments to Bodies in Respect of Income Collected,11/09/2014,IJ00036242,1247.34,NATIONAL EXPRESS CREDIT CONTROL DEPT,
East Lindsey District Council,http://statistics.data.gov.uk/id/local-authority/32UC,Customer Services Manager,Payments to Bodies in Respect of Income Collected,11/09/2014,IJ00036242,2120.53,NATIONAL EXPRESS CREDIT CONTROL DEPT,
East Lindsey District Council,http://statistics.data.gov.uk/id/local-authority/32UC,Customer Services Manager,Payments to Bodies in Respect of Income Collected,11/09/2014,IJ00036242,505.06,NATIONAL EXPRESS CREDIT CONTROL DEPT,
East Lindsey District Council,http://statistics.data.gov.uk/id/local-authority/32UC,Customer Services Manager,Payments to Bodies in Respect of Income Collected,11/09/2014,IJ00036237,1292.20,WOODHALL SPA COTTAGE MUSEUM,
East Lindsey District Council,http://statistics.data.gov.uk/id/local-authority/32UC,Economic & Tourism,Clothing Uniforms And Laundry,11/09/2014,IJ00036247,1534.34,PHS LAUNDRYSERV,
East Lindsey District Council,http://statistics.data.gov.uk/id/local-authority/32UC,Economic & Tourism,Grants and Contributions to Outside Bodies- No Service Recei,11/09/2014,IJ00036214,1684.80,MABLETHORPE AREA PARTNERSHIP,
East Lindsey District Council,http://statistics.data.gov.uk/id/local-authority/32UC,"Performance, Governance & Commissioning",Grants and Contributions to Outside Bodies- No Service Recei,11/09/2014,IJ00036390,800.00,TRUSTHORPE ALLOTMENT GARDEN ASSOC,
East Lindsey District Council,http://statistics.data.gov.uk/id/local-authority/32UC,"Performance, Governance & Commissioning",Grants and Contributions to Outside Bodies- No Service Recei,11/09/2014,IJ00036417,720.00,UTTERBY PARISH COUNCIL,
East Lindsey District Council,http://statistics.data.gov.uk/id/local-authority/32UC,Hsg Private Sector TL,Other Income,11/09/2014,IJ00036330,-509.06,THM CONSTRUCTION,
East Lindsey District Council,http://statistics.data.gov.uk/id/local-authority/32UC,Hsg Private Sector TL,Grants and Contributions to Outside Bodies- No Service Recei,11/09/2014,IJ00036330,5701.43,THM CONSTRUCTION,
East Lindsey District Council,http://statistics.data.gov.uk/id/local-authority/32UC,Theatre Manager,Performers and Entertainers Fees,11/09/2014,IJ00036383,4541.51,SWEENEY ENTERTAINMENTS,
East Lindsey District Council,http://statistics.data.gov.uk/id/local-authority/32UC,Theatre Manager,Performers and Entertainers Fees,11/09/2014,IJ00036383,-210.00,SWEENEY ENTERTAINMENTS,
East Lindsey District Council,http://statistics.data.gov.uk/id/local-authority/32UC,Waste Services Manager,Materials and Consumables,11/09/2014,IJ00036366,107.46,GRS SIGN CO LTD,
East Lindsey District Council,http://statistics.data.gov.uk/id/local-authority/32UC,Enforcement Team Leader,Furniture and Equipment,11/09/2014,IJ00036366,1681.19,GRS SIGN CO LTD,
East Lindsey District Council,http://statistics.data.gov.uk/id/local-authority/32UC,Economic & Tourism,Other Miscellaneous Expenses,11/09/2014,IJ00036366,52.50,GRS SIGN CO LTD,
East Lindsey District Council,http://statistics.data.gov.uk/id/local-authority/32UC,TL Property,Buildings Maintenance - Responsive,11/09/2014,IJ00036366,165.52,GRS SIGN CO LTD,
East Lindsey District Council,http://statistics.data.gov.uk/id/local-authority/32UC,Economic & Tourism,Other Miscellaneous Expenses,11/09/2014,IJ00036366,15.00,GRS SIGN CO LTD,
East Lindsey District Council,http://statistics.data.gov.uk/id/local-authority/32UC,Leisure Operations,Buildings Maintenance - Responsive,11/09/2014,IJ00036366,66.30,GRS SIGN CO LTD,
East Lindsey District Council,http://statistics.data.gov.uk/id/local-authority/32UC,Neighbourhood Services,Buildings Maintenance - Responsive,11/09/2014,IJ00036366,95.25,GRS SIGN CO LTD,
East Lindsey District Council,http://statistics.data.gov.uk/id/local-authority/32UC,Neighbourhood Services,Buildings Maintenance - Programmed,11/09/2014,IJ00036366,43.32,GRS SIGN CO LTD,
East Lindsey District Council,http://statistics.data.gov.uk/id/local-authority/32UC,TL Property,Grants and Contributions to Outside Bodies- No Service Recei,11/09/2014,IJ00036366,1785.00,GRS SIGN CO LTD,
East Lindsey District Council,http://statistics.data.gov.uk/id/local-authority/32UC,Neighbourhood Services,Furniture and Equipment,11/09/2014,IJ00036346,565.00,CHARLES HILL LTD,
East Lindsey District Council,http://statistics.data.gov.uk/id/local-authority/32UC,Waste Services Manager,Materials and Consumables,11/09/2014,IJ00036407,6539.50,ESE LTD,
East Lindsey District Council,http://statistics.data.gov.uk/id/local-authority/32UC,Customer Services Manager,Payments to Bodies in Respect of Income Collected,11/09/2014,IJ00036389,2002.72,RUSSELLS CIRCUS,
East Lindsey District Council,http://statistics.data.gov.uk/id/local-authority/32UC,Customer Services Manager,Payments to Bodies in Respect of Income Collected,11/09/2014,IJ00036389,61.44,RUSSELLS CIRCUS,
East Lindsey District Council,http://statistics.data.gov.uk/id/local-authority/32UC,Corporate Accounting,External Audit Fees,11/09/2014,IJ00036270,16827.50,KPMG LLP,
East Lindsey District Council,http://statistics.data.gov.uk/id/local-authority/32UC,TL Property,Buildings Maintenance - Responsive,11/09/2014,IJ00036351,805.80,NORTHERN POWERGRID (YORKSHIRE) PLC,
East Lindsey District Council,http://statistics.data.gov.uk/id/local-authority/32UC,Environment Team Leader,Other Private Contractors,11/09/2014,IJ00036224,1300.00,ARNOLD FUNERAL SERVICE,
East Lindsey District Council,http://statistics.data.gov.uk/id/local-authority/32UC,Hsg Private Sector TL,Grants and Contributions to Outside Bodies- No Service Recei,11/09/2014,IJ00036402,1500.00,ANDREW WRISDALE BUILDING CONTRACTOR,
East Lindsey District Council,http://statistics.data.gov.uk/id/local-authority/32UC,Hsg Private Sector TL,Grants and Contributions to Outside Bodies- No Service Recei,11/09/2014,IJ00036403,9000.00,ANDREW WRISDALE BUILDING CONTRACTOR,
East Lindsey District Council,http://statistics.data.gov.uk/id/local-authority/32UC,Theatre Manager,Performers and Entertainers Fees,11/09/2014,IJ00036386,2233.57,CHAMBERS MANAGEMENT TOURING,
East Lindsey District Council,http://statistics.data.gov.uk/id/local-authority/32UC,Theatre Manager,Performers and Entertainers Fees,11/09/2014,IJ00036386,-625.63,CHAMBERS MANAGEMENT TOURING,
East Lindsey District Council,http://statistics.data.gov.uk/id/local-authority/32UC,Waste Services Manager,Fuel & Oil,11/09/2014,IJ00036306,28524.36,EMO OIL LIMITED,
East Lindsey District Council,http://statistics.data.gov.uk/id/local-authority/32UC,Cultural & Related Services,Other Miscellaneous Expenses,11/09/2014,IJ00036251,1800.00,BLOCKFREE SERVICES LTD,
East Lindsey District Council,http://statistics.data.gov.uk/id/local-authority/32UC,Economic & Tourism,Other Miscellaneous Expenses,11/09/2014,IJ00036208,1000.00,Accord Group Limited,
East Lindsey District Council,http://statistics.data.gov.uk/id/local-authority/32UC,Economic & Tourism,Other Miscellaneous Expenses,11/09/2014,IJ00036208,1.00,Accord Group Limited,
East Lindsey District Council,http://statistics.data.gov.uk/id/local-authority/32UC,Economic & Tourism,Other Miscellaneous Expenses,11/09/2014,IJ00036209,13.69,Accord Group Limited,
East Lindsey District Council,http://statistics.data.gov.uk/id/local-authority/32UC,Economic & Tourism,Other Miscellaneous Expenses,11/09/2014,IJ00036209,15048.00,Accord Group Limited,
East Lindsey District Council,http://statistics.data.gov.uk/id/local-authority/32UC,"Performance, Governance & Commissioning",External Printing and Design Costs,11/09/2014,IJ00036299,5336.18,Print.UK.com,
East Lindsey District Council,http://statistics.data.gov.uk/id/local-authority/32UC,Leisure Operations,Furniture and Equipment,11/09/2014,IJ00036376,1393.00,Water Fitness Ltd,
East Lindsey District Council,http://statistics.data.gov.uk/id/local-authority/32UC,Theatre Manager,Furniture and Equipment,11/09/2014,IJ00036401,2761.00,Sleaford Electrical and Refrigeration Company Ltd,
East Lindsey District Council,http://statistics.data.gov.uk/id/local-authority/32UC,Hsg Private Sector TL,Grants and Contributions to Outside Bodies- No Service Recei,11/09/2014,IJ00036303,4207.59,John Barkers Solicitors,
East Lindsey District Council,http://statistics.data.gov.uk/id/local-authority/32UC,Waste Services Manager,Commercial Vehicle Lease,11/09/2014,IJ00036275,14962.22,Kier FPS Limited,
East Lindsey District Council,http://statistics.data.gov.uk/id/local-authority/32UC,Neighbourhood Services,Fuel & Oil,11/09/2014,IJ00036218,613.62,Fuel Card Services Ltd,
East Lindsey District Council,http://statistics.data.gov.uk/id/local-authority/32UC,Cultural & Related Services,Professional & Contractors Fees,11/09/2014,IJ00036262,2500.00,Lorna Fulton,
East Lindsey District Council,http://statistics.data.gov.uk/id/local-authority/32UC,Waste Services Manager,Agency Staff,11/09/2014,IJ00036309,1499.71,BIBBY FACTORS YORKSHIRE LIMITED,
East Lindsey District Council,http://statistics.data.gov.uk/id/local-authority/32UC,Economic & Tourism,Other Miscellaneous Expenses,11/09/2014,IJ00036216,4605.25,Michael A Singh,
East Lindsey District Council,http://statistics.data.gov.uk/id/local-authority/32UC,Enforcement Team Leader,Other Miscellaneous Expenses,11/09/2014,IJ00036261,9845.50,High Court Solutions,
East Lindsey District Council,http://statistics.data.gov.uk/id/local-authority/32UC,Building Control,Advertising - Events,11/09/2014,IJ00036328,723.78,Micromagnetics Ltd,
East Lindsey District Council,http://statistics.data.gov.uk/id/local-authority/32UC,Theatre Manager,Performers and Entertainers Fees,11/09/2014,IJ00036384,8810.39,Entertainers Magic Of Motown Ltd,
East Lindsey District Council,http://statistics.data.gov.uk/id/local-authority/32UC,Theatre Manager,Performers and Entertainers Fees,11/09/2014,IJ00036384,-558.00,Entertainers Magic Of Motown Ltd,
East Lindsey District Council,http://statistics.data.gov.uk/id/local-authority/32UC,Theatre Manager,Performers and Entertainers Fees,11/09/2014,IJ00036385,500.00,World On Stage Ltd,
East Lindsey District Council,http://statistics.data.gov.uk/id/local-authority/32UC,"Performance, Governance & Commissioning",Grants and Contributions to Outside Bodies- No Service Recei,11/09/2014,IJ00036370,5384.23,East Coast Gymnastics,
East Lindsey District Council,http://statistics.data.gov.uk/id/local-authority/32UC,"Performance, Governance & Commissioning",Grants and Contributions to Outside Bodies- No Service Recei,11/09/2014,IJ00036412,1000.00,Skegness Amatuer Swimming Club,
East Lindsey District Council,http://statistics.data.gov.uk/id/local-authority/32UC,Collection Fund,Precept - Lincolnshire Police,17/09/2014,IJ00036529,789708.10,LOCAL POLICE AUTHORITY FUND ACCOUNT,
East Lindsey District Council,http://statistics.data.gov.uk/id/local-authority/32UC,Collection Fund,Precept- Lincolnshire County Council,17/09/2014,IJ00036530,4341195.00,LINCOLNSHIRE COUNTY COUNCIL,
East Lindsey District Council,http://statistics.data.gov.uk/id/local-authority/32UC,Collection Fund,Share of NDR Income - Lincolnshire,17/09/2014,IJ00036530,310145.00,LINCOLNSHIRE COUNTY COUNCIL,
East Lindsey District Council,http://statistics.data.gov.uk/id/local-authority/32UC,Development Control,Banking Charges,17/09/2014,IJ00036605,6.39,CAPITA BUSINESS SERVICES LTD,
East Lindsey District Council,http://statistics.data.gov.uk/id/local-authority/32UC,Corporate Management,Banking Charges,17/09/2014,IJ00036605,66.90,CAPITA BUSINESS SERVICES LTD,
East Lindsey District Council,http://statistics.data.gov.uk/id/local-authority/32UC,Corporate Management,Banking Charges,17/09/2014,IJ00036605,2365.32,CAPITA BUSINESS SERVICES LTD,
East Lindsey District Council,http://statistics.data.gov.uk/id/local-authority/32UC,Corporate Management,Banking Charges,17/09/2014,IJ00036605,50.81,CAPITA BUSINESS SERVICES LTD,
East Lindsey District Council,http://statistics.data.gov.uk/id/local-authority/32UC,Corporate Management,Banking Charges,17/09/2014,IJ00036605,73.76,CAPITA BUSINESS SERVICES LTD,
East Lindsey District Council,http://statistics.data.gov.uk/id/local-authority/32UC,Corporate Accounting,Banking Charges,17/09/2014,IJ00036605,1947.65,CAPITA BUSINESS SERVICES LTD,
East Lindsey District Council,http://statistics.data.gov.uk/id/local-authority/32UC,Corporate Management,Parish Council Precepts,18/09/2014,IJ00036466,21425.00,ALFORD TOWN COUNCIL,
East Lindsey District Council,http://statistics.data.gov.uk/id/local-authority/32UC,Corporate Accounting,Grants and Contributions to Outside Bodies- No Service Recei,18/09/2014,IJ00036592,3527.50,ALFORD TOWN COUNCIL,
East Lindsey District Council,http://statistics.data.gov.uk/id/local-authority/32UC,Theatre Manager,Grants and Contributions to Outside Bodies- No Service Recei,18/09/2014,IJ00036586,565.25,F HUNT (COACH HIRE) LTD,
East Lindsey District Council,http://statistics.data.gov.uk/id/local-authority/32UC,Theatre Manager,Grants and Contributions to Outside Bodies- No Service Recei,18/09/2014,IJ00036588,631.55,F HUNT (COACH HIRE) LTD,
East Lindsey District Council,http://statistics.data.gov.uk/id/local-authority/32UC,Neighbourhood Services,Materials and Consumables,18/09/2014,IJ00036649,555.30,STOWLIN LTD,
East Lindsey District Council,http://statistics.data.gov.uk/id/local-authority/32UC,Neighbourhood Services,Materials and Consumables,18/09/2014,IJ00036691,583.20,STOWLIN LTD,
East Lindsey District Council,http://statistics.data.gov.uk/id/local-authority/32UC,Theatre Manager,Performers and Entertainers Fees,18/09/2014,IJ00036621,7633.77,JANICE SUTTON,
East Lindsey District Council,http://statistics.data.gov.uk/id/local-authority/32UC,Theatre Manager,Performers and Entertainers Fees,18/09/2014,IJ00036621,-2422.13,JANICE SUTTON,
East Lindsey District Council,http://statistics.data.gov.uk/id/local-authority/32UC,Corporate Management,Parish Council Precepts,18/09/2014,IJ00036489,26520.00,WOODHALL SPA PARISH COUNCIL,
East Lindsey District Council,http://statistics.data.gov.uk/id/local-authority/32UC,Corporate Accounting,Grants and Contributions to Outside Bodies- No Service Recei,18/09/2014,IJ00036624,1290.50,WOODHALL SPA PARISH COUNCIL,
East Lindsey District Council,http://statistics.data.gov.uk/id/local-authority/32UC,Corporate Management,Parish Council Precepts,18/09/2014,IJ00036484,19332.50,SPILSBY TOWN COUNCIL,
East Lindsey District Council,http://statistics.data.gov.uk/id/local-authority/32UC,Corporate Accounting,Grants and Contributions to Outside Bodies- No Service Recei,18/09/2014,IJ00036618,2928.00,SPILSBY TOWN COUNCIL,
East Lindsey District Council,http://statistics.data.gov.uk/id/local-authority/32UC,Corporate Management,Parish Council Precepts,18/09/2014,IJ00036467,6950.00,BINBROOK PARISH COUNCIL,
East Lindsey District Council,http://statistics.data.gov.uk/id/local-authority/32UC,Corporate Accounting,Grants and Contributions to Outside Bodies- No Service Recei,18/09/2014,IJ00036594,756.50,BINBROOK PARISH COUNCIL,
East Lindsey District Council,http://statistics.data.gov.uk/id/local-authority/32UC,Leisure Operations,Buildings Maintenance - Programmed,18/09/2014,IJ00036656,640.75,ABACUS LIGHTING LIMITED,
East Lindsey District Council,http://statistics.data.gov.uk/id/local-authority/32UC,Corporate Management,Parish Council Precepts,18/09/2014,IJ00036483,110170.50,SKEGNESS TOWN COUNCIL,
East Lindsey District Council,http://statistics.data.gov.uk/id/local-authority/32UC,Corporate Accounting,Grants and Contributions to Outside Bodies- No Service Recei,18/09/2014,IJ00036617,19189.50,SKEGNESS TOWN COUNCIL,
East Lindsey District Council,http://statistics.data.gov.uk/id/local-authority/32UC,Hsg Private Sector TL,Grants and Contributions to Outside Bodies- No Service Recei,18/09/2014,IJ00036634,5000.00,M & M GRANTHAM,
East Lindsey District Council,http://statistics.data.gov.uk/id/local-authority/32UC,Corporate Management,Parish Council Precepts,18/09/2014,IJ00036468,19009.96,BURGH LE MARSH TOWN COUNCIL,
East Lindsey District Council,http://statistics.data.gov.uk/id/local-authority/32UC,Corporate Accounting,Grants and Contributions to Outside Bodies- No Service Recei,18/09/2014,IJ00036596,2456.00,BURGH LE MARSH TOWN COUNCIL,
East Lindsey District Council,http://statistics.data.gov.uk/id/local-authority/32UC,Corporate Management,Parish Council Precepts,18/09/2014,IJ00036471,5730.00,EASTVILLE MIDVILLE & NEW LEAKE PARISH C,
East Lindsey District Council,http://statistics.data.gov.uk/id/local-authority/32UC,Corporate Accounting,Grants and Contributions to Outside Bodies- No Service Recei,18/09/2014,IJ00036602,832.50,EASTVILLE MIDVILLE & NEW LEAKE PARISH C,
East Lindsey District Council,http://statistics.data.gov.uk/id/local-authority/32UC,Corporate Management,Parish Council Precepts,18/09/2014,IJ00036474,24350.50,HOLTON LE CLAY PARISH COUNCIL,
East Lindsey District Council,http://statistics.data.gov.uk/id/local-authority/32UC,Corporate Accounting,Grants and Contributions to Outside Bodies- No Service Recei,18/09/2014,IJ00036607,1649.50,HOLTON LE CLAY PARISH COUNCIL,
East Lindsey District Council,http://statistics.data.gov.uk/id/local-authority/32UC,Hsg Advice & Homelessness TL,Furniture and Equipment,18/09/2014,IJ00036574,589.00,WORLD OF FURNISHINGS LIMITED,
East Lindsey District Council,http://statistics.data.gov.uk/id/local-authority/32UC,Enforcement Team Leader,Professional & Contractors Fees,18/09/2014,IJ00036638,2918.00,LINCOLNSHIRE COUNTY COUNCIL,
East Lindsey District Council,http://statistics.data.gov.uk/id/local-authority/32UC,TL Property,Buildings Maintenance - Responsive,18/09/2014,IJ00036650,786.96,LINCOLNSHIRE COUNTY COUNCIL,
East Lindsey District Council,http://statistics.data.gov.uk/id/local-authority/32UC,Corporate Management,Parish Council Precepts,18/09/2014,IJ00036485,6176.50,STICKNEY PARISH COUNCIL,
East Lindsey District Council,http://statistics.data.gov.uk/id/local-authority/32UC,Corporate Accounting,Grants and Contributions to Outside Bodies- No Service Recei,18/09/2014,IJ00036619,823.50,STICKNEY PARISH COUNCIL,
East Lindsey District Council,http://statistics.data.gov.uk/id/local-authority/32UC,Corporate Management,Parish Council Precepts,18/09/2014,IJ00036482,16402.50,SIBSEY PARISH COUNCIL,
East Lindsey District Council,http://statistics.data.gov.uk/id/local-authority/32UC,Corporate Accounting,Grants and Contributions to Outside Bodies- No Service Recei,18/09/2014,IJ00036615,1097.50,SIBSEY PARISH COUNCIL,
East Lindsey District Council,http://statistics.data.gov.uk/id/local-authority/32UC,Corporate Management,Parish Council Precepts,18/09/2014,IJ00036476,9955.00,INGOLDMELLS PARISH COUNCIL,
East Lindsey District Council,http://statistics.data.gov.uk/id/local-authority/32UC,Corporate Accounting,Grants and Contributions to Outside Bodies- No Service Recei,18/09/2014,IJ00036609,1756.00,INGOLDMELLS PARISH COUNCIL,
East Lindsey District Council,http://statistics.data.gov.uk/id/local-authority/32UC,Corporate Management,Parish Council Precepts,18/09/2014,IJ00036477,95560.00,LOUTH TOWN COUNCIL,
East Lindsey District Council,http://statistics.data.gov.uk/id/local-authority/32UC,Corporate Accounting,Grants and Contributions to Outside Bodies- No Service Recei,18/09/2014,IJ00036610,10996.00,LOUTH TOWN COUNCIL,
East Lindsey District Council,http://statistics.data.gov.uk/id/local-authority/32UC,Economic & Tourism,Agency Staff,18/09/2014,IJ00036553,29.40,WORKFORCE UNLIMITED,
East Lindsey District Council,http://statistics.data.gov.uk/id/local-authority/32UC,Economic & Tourism,Agency Staff,18/09/2014,IJ00036553,715.40,WORKFORCE UNLIMITED,
East Lindsey District Council,http://statistics.data.gov.uk/id/local-authority/32UC,Economic & Tourism,Agency Staff,18/09/2014,IJ00036555,22.05,WORKFORCE UNLIMITED,
East Lindsey District Council,http://statistics.data.gov.uk/id/local-authority/32UC,Economic & Tourism,Agency Staff,18/09/2014,IJ00036555,686.00,WORKFORCE UNLIMITED,
East Lindsey District Council,http://statistics.data.gov.uk/id/local-authority/32UC,Economic & Tourism,Agency Staff,18/09/2014,IJ00036558,41.65,WORKFORCE UNLIMITED,
East Lindsey District Council,http://statistics.data.gov.uk/id/local-authority/32UC,Economic & Tourism,Agency Staff,18/09/2014,IJ00036558,477.75,WORKFORCE UNLIMITED,
East Lindsey District Council,http://statistics.data.gov.uk/id/local-authority/32UC,Hsg Private Sector TL,Other Income,18/09/2014,IJ00036632,-530.46,KES BUILDING MAINTENANCE LTD,
East Lindsey District Council,http://statistics.data.gov.uk/id/local-authority/32UC,Hsg Private Sector TL,Grants and Contributions to Outside Bodies- No Service Recei,18/09/2014,IJ00036632,5941.19,KES BUILDING MAINTENANCE LTD,
East Lindsey District Council,http://statistics.data.gov.uk/id/local-authority/32UC,BALANCE  SHEET,VAT Customs and Excise,18/09/2014,IJ00036454,513.85,JACOBS,
East Lindsey District Council,http://statistics.data.gov.uk/id/local-authority/32UC,BALANCE  SHEET,VAT Customs and Excise,18/09/2014,IJ00036456,667.90,JACOBS,
East Lindsey District Council,http://statistics.data.gov.uk/id/local-authority/32UC,"Performance, Governance & Commissioning",Grants and Contributions to Outside Bodies- No Service Recei,18/09/2014,IJ00036709,500.00,NORTHLANDS VILLAGE HALL,
East Lindsey District Council,http://statistics.data.gov.uk/id/local-authority/32UC,Corporate Management,Parish Council Precepts,18/09/2014,IJ00036472,7470.50,FRISKNEY PARISH COUNCIL,
East Lindsey District Council,http://statistics.data.gov.uk/id/local-authority/32UC,Corporate Accounting,Grants and Contributions to Outside Bodies- No Service Recei,18/09/2014,IJ00036603,1029.50,FRISKNEY PARISH COUNCIL,
East Lindsey District Council,http://statistics.data.gov.uk/id/local-authority/32UC,Corporate Management,Professional & Contractors Fees,18/09/2014,IJ00036717,600.00,CHRISTOPHER DONKIN,
East Lindsey District Council,http://statistics.data.gov.uk/id/local-authority/32UC,Corporate Management,Professional & Contractors Fees,18/09/2014,IJ00036719,650.00,CHRISTOPHER DONKIN,
East Lindsey District Council,http://statistics.data.gov.uk/id/local-authority/32UC,Leisure Operations,Other Miscellaneous Expenses,18/09/2014,IJ00036727,806.59,DEE BEE,
East Lindsey District Council,http://statistics.data.gov.uk/id/local-authority/32UC,Corporate Management,Parish Council Precepts,18/09/2014,IJ00036487,7526.00,TETNEY PARISH COUNCIL,
East Lindsey District Council,http://statistics.data.gov.uk/id/local-authority/32UC,Corporate Management,Parish Council Precepts,18/09/2014,IJ00036478,82818.00,MABLETHORPE & SUTTON TOWN COUNCIL,
East Lindsey District Council,http://statistics.data.gov.uk/id/local-authority/32UC,Corporate Accounting,Grants and Contributions to Outside Bodies- No Service Recei,18/09/2014,IJ00036611,13408.50,MABLETHORPE & SUTTON TOWN COUNCIL,
East Lindsey District Council,http://statistics.data.gov.uk/id/local-authority/32UC,Corporate Management,Parish Council Precepts,18/09/2014,IJ00036470,25239.50,CONINGSBY TOWN COUNCIL,
East Lindsey District Council,http://statistics.data.gov.uk/id/local-authority/32UC,Corporate Accounting,Grants and Contributions to Outside Bodies- No Service Recei,18/09/2014,IJ00036600,2260.50,CONINGSBY TOWN COUNCIL,
East Lindsey District Council,http://statistics.data.gov.uk/id/local-authority/32UC,"Performance, Governance & Commissioning",Grants and Contributions to Outside Bodies- No Service Recei,18/09/2014,IJ00036513,7200.00,BAUMBER VILLAGE HALL COMMITTEE,
East Lindsey District Council,http://statistics.data.gov.uk/id/local-authority/32UC,Corporate Management,Parish Council Precepts,18/09/2014,IJ00036479,5100.00,MARSHCHAPEL PARISH COUNCIL,
East Lindsey District Council,http://statistics.data.gov.uk/id/local-authority/32UC,Corporate Management,Parish Council Precepts,18/09/2014,IJ00036481,8207.18,NORTH THORESBY PARISH COUNCIL,
East Lindsey District Council,http://statistics.data.gov.uk/id/local-authority/32UC,Corporate Accounting,Grants and Contributions to Outside Bodies- No Service Recei,18/09/2014,IJ00036614,677.00,NORTH THORESBY PARISH COUNCIL,
East Lindsey District Council,http://statistics.data.gov.uk/id/local-authority/32UC,Corporate Management,Parish Council Precepts,18/09/2014,IJ00036469,29536.00,CHAPEL ST LEONARDS PARISH COUNCIL,
East Lindsey District Council,http://statistics.data.gov.uk/id/local-authority/32UC,Corporate Accounting,Grants and Contributions to Outside Bodies- No Service Recei,18/09/2014,IJ00036598,6029.50,CHAPEL ST LEONARDS PARISH COUNCIL,
East Lindsey District Council,http://statistics.data.gov.uk/id/local-authority/32UC,Corporate Management,Parish Council Precepts,18/09/2014,IJ00036486,8098.50,TATTERSHALL WITH THORPE PARISH COUNCIL,
East Lindsey District Council,http://statistics.data.gov.uk/id/local-authority/32UC,Corporate Accounting,Grants and Contributions to Outside Bodies- No Service Recei,18/09/2014,IJ00036620,625.50,TATTERSHALL WITH THORPE PARISH COUNCIL,
East Lindsey District Council,http://statistics.data.gov.uk/id/local-authority/32UC,Corporate Management,Parish Council Precepts,18/09/2014,IJ00036475,48077.00,HORNCASTLE TOWN COUNCIL,
East Lindsey District Council,http://statistics.data.gov.uk/id/local-authority/32UC,Corporate Accounting,Grants and Contributions to Outside Bodies- No Service Recei,18/09/2014,IJ00036608,5660.50,HORNCASTLE TOWN COUNCIL,
East Lindsey District Council,http://statistics.data.gov.uk/id/local-authority/32UC,Enforcement Team Leader,Payments to Bodies in Respect of Income Collected,18/09/2014,IJ00036706,2624.37,INNES ENGLAND COMMERCIAL PROPERTY,
East Lindsey District Council,http://statistics.data.gov.uk/id/local-authority/32UC,Enforcement Team Leader,Professional & Contractors Fees,18/09/2014,IJ00036515,871.47,VALUATION OFFICE AGENCY,
East Lindsey District Council,http://statistics.data.gov.uk/id/local-authority/32UC,Leisure Operations,Professional & Contractors Fees,18/09/2014,IJ00036525,965.00,REDACTED PERSONAL INFORMATION,REDACTED
East Lindsey District Council,http://statistics.data.gov.uk/id/local-authority/32UC,"Performance, Governance & Commissioning",Grants and Contributions to Outside Bodies- No Service Recei,18/09/2014,IJ00036572,750.00,MABLETHORPE MARATHON COMMITTEE,
East Lindsey District Council,http://statistics.data.gov.uk/id/local-authority/32UC,Corporate Management,Parish Council Precepts,18/09/2014,IJ00036480,10702.50,NORTH SOMERCOTES PARISH COUNCIL,
East Lindsey District Council,http://statistics.data.gov.uk/id/local-authority/32UC,Corporate Accounting,Grants and Contributions to Outside Bodies- No Service Recei,18/09/2014,IJ00036613,1181.00,NORTH SOMERCOTES PARISH COUNCIL,
East Lindsey District Council,http://statistics.data.gov.uk/id/local-authority/32UC,Neighbourhood Services,Buildings Maintenance - Responsive,18/09/2014,IJ00036648,1374.83,J TOMLINSON LTD,
East Lindsey District Council,http://statistics.data.gov.uk/id/local-authority/32UC,Corporate Management,Parish Council Precepts,18/09/2014,IJ00036473,5169.50,HOGSTHORPE PARISH COUNCIL,
East Lindsey District Council,http://statistics.data.gov.uk/id/local-authority/32UC,Corporate Accounting,Grants and Contributions to Outside Bodies- No Service Recei,18/09/2014,IJ00036606,830.50,HOGSTHORPE PARISH COUNCIL,
East Lindsey District Council,http://statistics.data.gov.uk/id/local-authority/32UC,Corporate Management,Parish Council Precepts,18/09/2014,IJ00036490,10177.50,WRAGBY PARISH COUNCIL,
East Lindsey District Council,http://statistics.data.gov.uk/id/local-authority/32UC,Corporate Accounting,Grants and Contributions to Outside Bodies- No Service Recei,18/09/2014,IJ00036625,1211.50,WRAGBY PARISH COUNCIL,
East Lindsey District Council,http://statistics.data.gov.uk/id/local-authority/32UC,Economic & Tourism,Other Miscellaneous Expenses,18/09/2014,IJ00036551,2414.00,SECWHA,
East Lindsey District Council,http://statistics.data.gov.uk/id/local-authority/32UC,Neighbourhood Services,Water and Sewerage Charges,18/09/2014,IJ00036686,2426.96,ANGLIAN WATER,
East Lindsey District Council,http://statistics.data.gov.uk/id/local-authority/32UC,Customer Services Manager,Payments to Bodies in Respect of Income Collected,18/09/2014,IJ00036511,2076.45,RUSSELLS CIRCUS,
East Lindsey District Council,http://statistics.data.gov.uk/id/local-authority/32UC,Theatre Manager,Performers and Entertainers Fees,18/09/2014,IJ00036629,2454.30,BRIAN SHAW CONCERTS,
East Lindsey District Council,http://statistics.data.gov.uk/id/local-authority/32UC,Theatre Manager,Performers and Entertainers Fees,18/09/2014,IJ00036629,-210.00,BRIAN SHAW CONCERTS,
East Lindsey District Council,http://statistics.data.gov.uk/id/local-authority/32UC,Economic & Tourism,Cleaning Contract,18/09/2014,IJ00036563,814.45,EASY CLEAN MARSHCHAPEL LTD,
East Lindsey District Council,http://statistics.data.gov.uk/id/local-authority/32UC,"Performance, Governance & Commissioning",Grants and Contributions to Outside Bodies- No Service Recei,18/09/2014,IJ00036710,500.00,LOUTH THIRTEEN PLUS PROJECT,
East Lindsey District Council,http://statistics.data.gov.uk/id/local-authority/32UC,"Performance, Governance & Commissioning",Grants and Contributions to Outside Bodies- No Service Recei,18/09/2014,IJ00036571,1000.00,THE VILLAGE CHURCH FARM LTD,
East Lindsey District Council,http://statistics.data.gov.uk/id/local-authority/32UC,Cultural & Related Services,Performers and Entertainers Fees,18/09/2014,IJ00036500,20500.00,GARSINGTON OPERA LTD,
East Lindsey District Council,http://statistics.data.gov.uk/id/local-authority/32UC,Cultural & Related Services,Performers and Entertainers Fees,18/09/2014,IJ00036501,833.33,GARSINGTON OPERA LTD,
East Lindsey District Council,http://statistics.data.gov.uk/id/local-authority/32UC,Theatre Manager,Performers and Entertainers Fees,18/09/2014,IJ00036626,2767.33,PRESTIGE PRODUCTIONS LTD,
East Lindsey District Council,http://statistics.data.gov.uk/id/local-authority/32UC,Theatre Manager,Performers and Entertainers Fees,18/09/2014,IJ00036626,-415.68,PRESTIGE PRODUCTIONS LTD,
East Lindsey District Council,http://statistics.data.gov.uk/id/local-authority/32UC,Hsg Private Sector TL,Other Income,18/09/2014,IJ00036636,-614.03,ANDREW WRISDALE BUILDING CONTRACTOR,
East Lindsey District Council,http://statistics.data.gov.uk/id/local-authority/32UC,Hsg Private Sector TL,Grants and Contributions to Outside Bodies- No Service Recei,18/09/2014,IJ00036636,6877.16,ANDREW WRISDALE BUILDING CONTRACTOR,
East Lindsey District Council,http://statistics.data.gov.uk/id/local-authority/32UC,Hsg Private Sector TL,Other Income,18/09/2014,IJ00036637,-461.79,ANDREW WRISDALE BUILDING CONTRACTOR,
East Lindsey District Council,http://statistics.data.gov.uk/id/local-authority/32UC,Hsg Private Sector TL,Grants and Contributions to Outside Bodies- No Service Recei,18/09/2014,IJ00036637,5172.05,ANDREW WRISDALE BUILDING CONTRACTOR,
East Lindsey District Council,http://statistics.data.gov.uk/id/local-authority/32UC,"Performance, Governance & Commissioning",Grants and Contributions to Outside Bodies- No Service Recei,18/09/2014,IJ00036506,1000.00,THE STOREHOUSE,
East Lindsey District Council,http://statistics.data.gov.uk/id/local-authority/32UC,Economic & Tourism,Grants and Contributions to Outside Bodies- No Service Recei,18/09/2014,IJ00036705,964.46,SUTTON ON SEA CARNIVAL COMMITTEE,
East Lindsey District Council,http://statistics.data.gov.uk/id/local-authority/32UC,Waste Services Manager,Other Communication Costs,18/09/2014,IJ00036541,500.00,BARTEC AUDIO ID LTD,
East Lindsey District Council,http://statistics.data.gov.uk/id/local-authority/32UC,Waste Services Manager,Other Communication Costs,18/09/2014,IJ00036542,8800.00,BARTEC AUDIO ID LTD,
East Lindsey District Council,http://statistics.data.gov.uk/id/local-authority/32UC,Waste Services Manager,Other Communication Costs,18/09/2014,IJ00036543,16800.00,BARTEC AUDIO ID LTD,
East Lindsey District Council,http://statistics.data.gov.uk/id/local-authority/32UC,Waste Services Manager,Other Communication Costs,18/09/2014,IJ00036544,56840.00,BARTEC AUDIO ID LTD,
East Lindsey District Council,http://statistics.data.gov.uk/id/local-authority/32UC,TL Property,Professional & Contractors Fees,18/09/2014,IJ00036576,562.50,Louth Education Community Interest Company,
East Lindsey District Council,http://statistics.data.gov.uk/id/local-authority/32UC,Enforcement Team Leader,Fuel & Oil,18/09/2014,IJ00036695,250.05,AllStar Business Solutions Ltd,
East Lindsey District Council,http://statistics.data.gov.uk/id/local-authority/32UC,Neighbourhood Services,Fuel & Oil,18/09/2014,IJ00036695,1484.92,AllStar Business Solutions Ltd,
East Lindsey District Council,http://statistics.data.gov.uk/id/local-authority/32UC,Neighbourhood Services,Fuel & Oil,18/09/2014,IJ00036695,626.74,AllStar Business Solutions Ltd,
East Lindsey District Council,http://statistics.data.gov.uk/id/local-authority/32UC,TL Property,Fuel & Oil,18/09/2014,IJ00036695,51.23,AllStar Business Solutions Ltd,
East Lindsey District Council,http://statistics.data.gov.uk/id/local-authority/32UC,Neighbourhood Services,Fuel & Oil,18/09/2014,IJ00036695,90.45,AllStar Business Solutions Ltd,
East Lindsey District Council,http://statistics.data.gov.uk/id/local-authority/32UC,Hsg Advice & Homelessness TL,Fuel & Oil,18/09/2014,IJ00036695,70.88,AllStar Business Solutions Ltd,
East Lindsey District Council,http://statistics.data.gov.uk/id/local-authority/32UC,Neighbourhood Services,Fuel & Oil,18/09/2014,IJ00036695,1176.51,AllStar Business Solutions Ltd,
East Lindsey District Council,http://statistics.data.gov.uk/id/local-authority/32UC,Theatre Manager,Performers and Entertainers Fees,18/09/2014,IJ00036628,1967.76,Rivieria Entertainments,
East Lindsey District Council,http://statistics.data.gov.uk/id/local-authority/32UC,Theatre Manager,Performers and Entertainers Fees,18/09/2014,IJ00036628,-235.00,Rivieria Entertainments,
East Lindsey District Council,http://statistics.data.gov.uk/id/local-authority/32UC,Theatre Manager,Performers and Entertainers Fees,18/09/2014,IJ00036630,4460.72,LMS Worldwide Ltd,
East Lindsey District Council,http://statistics.data.gov.uk/id/local-authority/32UC,Theatre Manager,Performers and Entertainers Fees,18/09/2014,IJ00036630,-210.00,LMS Worldwide Ltd,
East Lindsey District Council,http://statistics.data.gov.uk/id/local-authority/32UC,Theatre Manager,Postages,18/09/2014,IJ00036630,143.35,LMS Worldwide Ltd,
East Lindsey District Council,http://statistics.data.gov.uk/id/local-authority/32UC,Waste Services Manager,Commercial Vehicle Lease,18/09/2014,IJ00036528,3266.18,Kier FPS Limited,
East Lindsey District Council,http://statistics.data.gov.uk/id/local-authority/32UC,Neighbourhood Services,Commercial Vehicle Lease,18/09/2014,IJ00036528,23675.86,Kier FPS Limited,
East Lindsey District Council,http://statistics.data.gov.uk/id/local-authority/32UC,Neighbourhood Services,Commercial Vehicle Lease,18/09/2014,IJ00036528,10312.00,Kier FPS Limited,
East Lindsey District Council,http://statistics.data.gov.uk/id/local-authority/32UC,Neighbourhood Services,Commercial Vehicle Lease,18/09/2014,IJ00036528,6208.74,Kier FPS Limited,
East Lindsey District Council,http://statistics.data.gov.uk/id/local-authority/32UC,Neighbourhood Services,Fuel & Oil,18/09/2014,IJ00036512,517.91,Fuel Card Services Ltd,
East Lindsey District Council,http://statistics.data.gov.uk/id/local-authority/32UC,"Performance, Governance & Commissioning",Grants and Contributions to Outside Bodies- No Service Recei,18/09/2014,IJ00036509,800.00,St James Church Spilsby,
East Lindsey District Council,http://statistics.data.gov.uk/id/local-authority/32UC,Development Control,Agency Staff,18/09/2014,IJ00036577,2135.00,REDACTED PERSONAL INFORMATION,REDACTED
East Lindsey District Council,http://statistics.data.gov.uk/id/local-authority/32UC,Neighbourhood Services,Buildings Maintenance - Programmed,18/09/2014,IJ00036677,532.24,Evoqua Water Technologies Ltd,
East Lindsey District Council,http://statistics.data.gov.uk/id/local-authority/32UC,Leisure Operations,Buildings Maintenance - Programmed,18/09/2014,IJ00036678,649.73,Evoqua Water Technologies Ltd,
East Lindsey District Council,http://statistics.data.gov.uk/id/local-authority/32UC,Leisure Operations,Buildings Maintenance - Programmed,18/09/2014,IJ00036680,974.01,Evoqua Water Technologies Ltd,
East Lindsey District Council,http://statistics.data.gov.uk/id/local-authority/32UC,Economic & Tourism,Other Miscellaneous Expenses,18/09/2014,IJ00036550,815.38,Exterion Media Limited,
East Lindsey District Council,http://statistics.data.gov.uk/id/local-authority/32UC,Waste Services Manager,Agency Staff,18/09/2014,IJ00036640,1446.78,BIBBY FACTORS YORKSHIRE LIMITED,
East Lindsey District Council,http://statistics.data.gov.uk/id/local-authority/32UC,Hsg Advice & Homelessness TL,Furniture and Equipment,18/09/2014,IJ00036536,2970.00,Tunstal Healthcare Uk Ltd,
East Lindsey District Council,http://statistics.data.gov.uk/id/local-authority/32UC,Enforcement Team Leader,Other Miscellaneous Expenses,18/09/2014,IJ00036549,750.00,No 5 Chambers Ltd,
East Lindsey District Council,http://statistics.data.gov.uk/id/local-authority/32UC,Waste Services Manager,Tyres,18/09/2014,IJ00036690,6263.11,Vacu Lug Traction Tyres Ltd,
East Lindsey District Council,http://statistics.data.gov.uk/id/local-authority/32UC,Theatre Manager,Performers and Entertainers Fees,18/09/2014,IJ00036708,3266.04,R Thomas,
East Lindsey District Council,http://statistics.data.gov.uk/id/local-authority/32UC,Theatre Manager,Performers and Entertainers Fees,18/09/2014,IJ00036708,-1254.50,R Thomas,
East Lindsey District Council,http://statistics.data.gov.uk/id/local-authority/32UC,Economic & Tourism,Grants and Contributions to Outside Bodies- No Service Recei,18/09/2014,IJ00036703,5600.00,KIRKS QUALITY FOODS,
East Lindsey District Council,http://statistics.data.gov.uk/id/local-authority/32UC,Hsg Advice & Homelessness TL,Other Miscellaneous Expenses,18/09/2014,IJ00036702,600.00,REDACTED PERSONAL INFORMATION,REDACTED
East Lindsey District Council,http://statistics.data.gov.uk/id/local-authority/32UC,Leisure Operations,Other agencies,25/09/2014,IJ00036797,6297.02,COMPETITION LINE (UK) LTD,
East Lindsey District Council,http://statistics.data.gov.uk/id/local-authority/32UC,Neighbourhood Services,Professional & Contractors Fees,25/09/2014,IJ00036735,400.00,SID DENNIS & SONS LTD,
East Lindsey District Council,http://statistics.data.gov.uk/id/local-authority/32UC,Neighbourhood Services,Professional & Contractors Fees,25/09/2014,IJ00036735,240.00,SID DENNIS & SONS LTD,
East Lindsey District Council,http://statistics.data.gov.uk/id/local-authority/32UC,Economic & Tourism,Buildings Maintenance - Responsive,25/09/2014,IJ00036867,42.58,HARLITE INSTALLATIONS LTD,
East Lindsey District Council,http://statistics.data.gov.uk/id/local-authority/32UC,TL Property,Buildings Maintenance - Responsive,25/09/2014,IJ00036867,367.81,HARLITE INSTALLATIONS LTD,
East Lindsey District Council,http://statistics.data.gov.uk/id/local-authority/32UC,TL Property,Buildings Maintenance - Responsive,25/09/2014,IJ00036867,211.71,HARLITE INSTALLATIONS LTD,
East Lindsey District Council,http://statistics.data.gov.uk/id/local-authority/32UC,TL Property,Buildings Maintenance - Responsive,25/09/2014,IJ00036867,149.89,HARLITE INSTALLATIONS LTD,
East Lindsey District Council,http://statistics.data.gov.uk/id/local-authority/32UC,TL Property,Buildings Maintenance - Responsive,25/09/2014,IJ00036867,163.04,HARLITE INSTALLATIONS LTD,
East Lindsey District Council,http://statistics.data.gov.uk/id/local-authority/32UC,TL Property,Buildings Maintenance - Responsive,25/09/2014,IJ00036867,1331.52,HARLITE INSTALLATIONS LTD,
East Lindsey District Council,http://statistics.data.gov.uk/id/local-authority/32UC,TL Property,Buildings Maintenance - Responsive,25/09/2014,IJ00036867,169.72,HARLITE INSTALLATIONS LTD,
East Lindsey District Council,http://statistics.data.gov.uk/id/local-authority/32UC,Neighbourhood Services,Buildings Maintenance - Responsive,25/09/2014,IJ00036867,1188.12,HARLITE INSTALLATIONS LTD,
East Lindsey District Council,http://statistics.data.gov.uk/id/local-authority/32UC,TL Property,Buildings Maintenance - Responsive,25/09/2014,IJ00036867,219.88,HARLITE INSTALLATIONS LTD,
East Lindsey District Council,http://statistics.data.gov.uk/id/local-authority/32UC,Enforcement Team Leader,Buildings Maintenance - Responsive,25/09/2014,IJ00036867,18.02,HARLITE INSTALLATIONS LTD,
East Lindsey District Council,http://statistics.data.gov.uk/id/local-authority/32UC,TL Property,Cleaning Contract,25/09/2014,IJ00036866,526.00,D OLSEN,
East Lindsey District Council,http://statistics.data.gov.uk/id/local-authority/32UC,Theatre Manager,Banking Charges,25/09/2014,IJ00036791,5.80,BARCLAYS MERCHANT SERVICES,
East Lindsey District Council,http://statistics.data.gov.uk/id/local-authority/32UC,Theatre Manager,Banking Charges,25/09/2014,IJ00036791,920.98,BARCLAYS MERCHANT SERVICES,
East Lindsey District Council,http://statistics.data.gov.uk/id/local-authority/32UC,Theatre Manager,Advertising - Events,25/09/2014,IJ00036882,850.00,F W CUPIT PRINTERS LIMITED,
East Lindsey District Council,http://statistics.data.gov.uk/id/local-authority/32UC,Theatre Manager,Advertising - Events,25/09/2014,IJ00036882,4548.62,F W CUPIT PRINTERS LIMITED,
East Lindsey District Council,http://statistics.data.gov.uk/id/local-authority/32UC,Corporate Management,Parish Council Precepts,25/09/2014,IJ00036488,8689.00,WAINFLEET ALL SAINTS TOWN COUNCIL,
East Lindsey District Council,http://statistics.data.gov.uk/id/local-authority/32UC,Corporate Accounting,Grants and Contributions to Outside Bodies- No Service Recei,25/09/2014,IJ00036623,1984.50,WAINFLEET ALL SAINTS TOWN COUNCIL,
East Lindsey District Council,http://statistics.data.gov.uk/id/local-authority/32UC,Information Technology,Computer Hardware Purchase,25/09/2014,IJ00036800,3400.00,DELL COMPUTER CORPORATION LTD,
East Lindsey District Council,http://statistics.data.gov.uk/id/local-authority/32UC,Corporate Accounting,Business Rates Tariff,25/09/2014,IJ00036913,742410.00,LINCOLNSHIRE COUNTY COUNCIL,
East Lindsey District Council,http://statistics.data.gov.uk/id/local-authority/32UC,Neighbourhood Services,Fuel & Oil,25/09/2014,IJ00036783,1359.00,WATSON PETROLEUM LTD,
East Lindsey District Council,http://statistics.data.gov.uk/id/local-authority/32UC,BALANCE  SHEET,Payroll-Unison,25/09/2014,IJ00036838,1624.25,UNISON,
East Lindsey District Council,http://statistics.data.gov.uk/id/local-authority/32UC,Environment Team Leader,Electricity,25/09/2014,IJ00036892,27.04,SOUTHERN ELECTRIC PLC,
East Lindsey District Council,http://statistics.data.gov.uk/id/local-authority/32UC,TL Property,Electricity,25/09/2014,IJ00036892,128.28,SOUTHERN ELECTRIC PLC,
East Lindsey District Council,http://statistics.data.gov.uk/id/local-authority/32UC,Economic & Tourism,Electricity,25/09/2014,IJ00036892,9601.56,SOUTHERN ELECTRIC PLC,
East Lindsey District Council,http://statistics.data.gov.uk/id/local-authority/32UC,Neighbourhood Services,Electricity,25/09/2014,IJ00036892,24.37,SOUTHERN ELECTRIC PLC,
East Lindsey District Council,http://statistics.data.gov.uk/id/local-authority/32UC,Economic & Tourism,Electricity,25/09/2014,IJ00036892,388.33,SOUTHERN ELECTRIC PLC,
East Lindsey District Council,http://statistics.data.gov.uk/id/local-authority/32UC,Neighbourhood Services,Electricity,25/09/2014,IJ00036892,236.62,SOUTHERN ELECTRIC PLC,
East Lindsey District Council,http://statistics.data.gov.uk/id/local-authority/32UC,Enforcement Team Leader,Electricity,25/09/2014,IJ00036892,101.41,SOUTHERN ELECTRIC PLC,
East Lindsey District Council,http://statistics.data.gov.uk/id/local-authority/32UC,Leisure Operations,Electricity,25/09/2014,IJ00036892,85.16,SOUTHERN ELECTRIC PLC,
East Lindsey District Council,http://statistics.data.gov.uk/id/local-authority/32UC,TL Property,Electricity,25/09/2014,IJ00036892,230.50,SOUTHERN ELECTRIC PLC,
East Lindsey District Council,http://statistics.data.gov.uk/id/local-authority/32UC,Neighbourhood Services,Electricity,25/09/2014,IJ00036892,725.07,SOUTHERN ELECTRIC PLC,
East Lindsey District Council,http://statistics.data.gov.uk/id/local-authority/32UC,Leisure Operations,Electricity,25/09/2014,IJ00036889,359.97,SOUTHERN ELECTRIC PLC,
East Lindsey District Council,http://statistics.data.gov.uk/id/local-authority/32UC,TL Property,Electricity,25/09/2014,IJ00036889,-97.46,SOUTHERN ELECTRIC PLC,
East Lindsey District Council,http://statistics.data.gov.uk/id/local-authority/32UC,TL Property,Electricity,25/09/2014,IJ00036889,70.89,SOUTHERN ELECTRIC PLC,
East Lindsey District Council,http://statistics.data.gov.uk/id/local-authority/32UC,Neighbourhood Services,Electricity,25/09/2014,IJ00036889,-396.64,SOUTHERN ELECTRIC PLC,
East Lindsey District Council,http://statistics.data.gov.uk/id/local-authority/32UC,TL Property,Electricity,25/09/2014,IJ00036889,24.22,SOUTHERN ELECTRIC PLC,
East Lindsey District Council,http://statistics.data.gov.uk/id/local-authority/32UC,TL Property,Electricity,25/09/2014,IJ00036889,-220.52,SOUTHERN ELECTRIC PLC,
East Lindsey District Council,http://statistics.data.gov.uk/id/local-authority/32UC,Economic & Tourism,Electricity,25/09/2014,IJ00036889,797.27,SOUTHERN ELECTRIC PLC,
East Lindsey District Council,http://statistics.data.gov.uk/id/local-authority/32UC,Neighbourhood Services,Electricity,25/09/2014,IJ00036889,369.06,SOUTHERN ELECTRIC PLC,
East Lindsey District Council,http://statistics.data.gov.uk/id/local-authority/32UC,Leisure Operations,Electricity,25/09/2014,IJ00036889,29.85,SOUTHERN ELECTRIC PLC,
East Lindsey District Council,http://statistics.data.gov.uk/id/local-authority/32UC,Leisure Operations,Electricity,25/09/2014,IJ00036889,3194.93,SOUTHERN ELECTRIC PLC,
East Lindsey District Council,http://statistics.data.gov.uk/id/local-authority/32UC,Theatre Manager,Electricity,25/09/2014,IJ00036893,1230.52,SOUTHERN ELECTRIC PLC,
East Lindsey District Council,http://statistics.data.gov.uk/id/local-authority/32UC,TL Property,Electricity,25/09/2014,IJ00036893,243.51,SOUTHERN ELECTRIC PLC,
East Lindsey District Council,http://statistics.data.gov.uk/id/local-authority/32UC,Leisure Operations,Electricity,25/09/2014,IJ00036893,97.41,SOUTHERN ELECTRIC PLC,
East Lindsey District Council,http://statistics.data.gov.uk/id/local-authority/32UC,TL Property,Electricity,25/09/2014,IJ00036893,4166.69,SOUTHERN ELECTRIC PLC,
East Lindsey District Council,http://statistics.data.gov.uk/id/local-authority/32UC,Waste Services Manager,Electricity,25/09/2014,IJ00036893,54.27,SOUTHERN ELECTRIC PLC,
East Lindsey District Council,http://statistics.data.gov.uk/id/local-authority/32UC,TL Property,Electricity,25/09/2014,IJ00036893,209.72,SOUTHERN ELECTRIC PLC,
East Lindsey District Council,http://statistics.data.gov.uk/id/local-authority/32UC,TL Property,Electricity,25/09/2014,IJ00036893,633.14,SOUTHERN ELECTRIC PLC,
East Lindsey District Council,http://statistics.data.gov.uk/id/local-authority/32UC,TL Property,Electricity,25/09/2014,IJ00036893,33.85,SOUTHERN ELECTRIC PLC,
East Lindsey District Council,http://statistics.data.gov.uk/id/local-authority/32UC,TL Property,Electricity,25/09/2014,IJ00036893,393.98,SOUTHERN ELECTRIC PLC,
East Lindsey District Council,http://statistics.data.gov.uk/id/local-authority/32UC,Neighbourhood Services,Electricity,25/09/2014,IJ00036893,110.22,SOUTHERN ELECTRIC PLC,
East Lindsey District Council,http://statistics.data.gov.uk/id/local-authority/32UC,Leisure Operations,Electricity,25/09/2014,IJ00036894,4901.24,SOUTHERN ELECTRIC PLC,
East Lindsey District Council,http://statistics.data.gov.uk/id/local-authority/32UC,Leisure Operations,Electricity,25/09/2014,IJ00036894,483.93,SOUTHERN ELECTRIC PLC,
East Lindsey District Council,http://statistics.data.gov.uk/id/local-authority/32UC,"Performance, Governance & Commissioning",Grants and Contributions to Outside Bodies- No Service Recei,25/09/2014,IJ00036877,890.00,WILLOUGHBY VILLAGE HALL COMMITTEE,
East Lindsey District Council,http://statistics.data.gov.uk/id/local-authority/32UC,BALANCE  SHEET,VAT Customs and Excise,25/09/2014,IJ00036772,672.35,JACOBS,
East Lindsey District Council,http://statistics.data.gov.uk/id/local-authority/32UC,Neighbourhood Services,Materials and Consumables,25/09/2014,IJ00036817,1456.22,ESPO,
East Lindsey District Council,http://statistics.data.gov.uk/id/local-authority/32UC,Leisure Operations,Materials and Consumables,25/09/2014,IJ00036817,161.75,ESPO,
East Lindsey District Council,http://statistics.data.gov.uk/id/local-authority/32UC,Neighbourhood Services,Materials and Consumables,25/09/2014,IJ00036817,1988.73,ESPO,
East Lindsey District Council,http://statistics.data.gov.uk/id/local-authority/32UC,Economic & Tourism,Clothing Uniforms And Laundry,25/09/2014,IJ00036817,13.14,ESPO,
East Lindsey District Council,http://statistics.data.gov.uk/id/local-authority/32UC,Economic & Tourism,Materials and Consumables,25/09/2014,IJ00036817,18.50,ESPO,
East Lindsey District Council,http://statistics.data.gov.uk/id/local-authority/32UC,Leisure Operations,Stationery,25/09/2014,IJ00036817,25.00,ESPO,
East Lindsey District Council,http://statistics.data.gov.uk/id/local-authority/32UC,Theatre Manager,Gas,25/09/2014,IJ00036905,-2586.21,ESPO,
East Lindsey District Council,http://statistics.data.gov.uk/id/local-authority/32UC,Theatre Manager,Gas,25/09/2014,IJ00036905,-4245.78,ESPO,
East Lindsey District Council,http://statistics.data.gov.uk/id/local-authority/32UC,Theatre Manager,Gas,25/09/2014,IJ00036905,-3001.78,ESPO,
East Lindsey District Council,http://statistics.data.gov.uk/id/local-authority/32UC,Theatre Manager,Gas,25/09/2014,IJ00036905,6865.97,ESPO,
East Lindsey District Council,http://statistics.data.gov.uk/id/local-authority/32UC,Theatre Manager,Gas,25/09/2014,IJ00036905,4213.95,ESPO,
East Lindsey District Council,http://statistics.data.gov.uk/id/local-authority/32UC,Neighbourhood Services,Materials and Consumables,25/09/2014,IJ00036912,2894.88,ESPO,
East Lindsey District Council,http://statistics.data.gov.uk/id/local-authority/32UC,Neighbourhood Services,Materials and Consumables,25/09/2014,IJ00036912,3815.04,ESPO,
East Lindsey District Council,http://statistics.data.gov.uk/id/local-authority/32UC,Economic & Tourism,Stationery,25/09/2014,IJ00036912,1.60,ESPO,
East Lindsey District Council,http://statistics.data.gov.uk/id/local-authority/32UC,Leisure Operations,Furniture and Equipment,25/09/2014,IJ00036912,163.88,ESPO,
East Lindsey District Council,http://statistics.data.gov.uk/id/local-authority/32UC,Leisure Operations,Furniture and Equipment,25/09/2014,IJ00036912,301.58,ESPO,
East Lindsey District Council,http://statistics.data.gov.uk/id/local-authority/32UC,Leisure Operations,Cleaning Contract,25/09/2014,IJ00036912,23.21,ESPO,
East Lindsey District Council,http://statistics.data.gov.uk/id/local-authority/32UC,Leisure Operations,Cleaning Contract,25/09/2014,IJ00036912,191.05,ESPO,
East Lindsey District Council,http://statistics.data.gov.uk/id/local-authority/32UC,Economic & Tourism,Stationery,25/09/2014,IJ00036912,21.30,ESPO,
East Lindsey District Council,http://statistics.data.gov.uk/id/local-authority/32UC,Environment Team Leader,Stationery,25/09/2014,IJ00036912,27.25,ESPO,
East Lindsey District Council,http://statistics.data.gov.uk/id/local-authority/32UC,Hsg Advice & Homelessness TL,Stationery,25/09/2014,IJ00036912,141.90,ESPO,
East Lindsey District Council,http://statistics.data.gov.uk/id/local-authority/32UC,Leisure Operations,Cleaning Contract,25/09/2014,IJ00036912,99.53,ESPO,
East Lindsey District Council,http://statistics.data.gov.uk/id/local-authority/32UC,Economic & Tourism,Professional & Contractors Fees,25/09/2014,IJ00036763,535.00,GATEWAY AUTOMATION LTD,
East Lindsey District Council,http://statistics.data.gov.uk/id/local-authority/32UC,Leisure Operations,Purchase Of Goods For Resale,25/09/2014,IJ00036780,864.81,DEE BEE,
East Lindsey District Council,http://statistics.data.gov.uk/id/local-authority/32UC,Leisure Operations,Purchase Of Goods For Resale,25/09/2014,IJ00036781,615.86,DEE BEE,
East Lindsey District Council,http://statistics.data.gov.uk/id/local-authority/32UC,Collection Fund,Central Share of NDR Income - Government,25/09/2014,IJ00036902,1682949.00,DEPARTMENT FOR COMMUNITIES AND LOCAL,
East Lindsey District Council,http://statistics.data.gov.uk/id/local-authority/32UC,Collection Fund,Transitional Protection Payments,25/09/2014,IJ00036902,-7816.00,DEPARTMENT FOR COMMUNITIES AND LOCAL,
East Lindsey District Council,http://statistics.data.gov.uk/id/local-authority/32UC,Collection Fund,Contribution to Deficit (NDR),25/09/2014,IJ00036902,-54688.00,DEPARTMENT FOR COMMUNITIES AND LOCAL,
East Lindsey District Council,http://statistics.data.gov.uk/id/local-authority/32UC,Waste Services Manager,Subscriptions to Organisations and Other Bodies,25/09/2014,IJ00036760,907.00,FREIGHT TRANSPORT ASSOCIATION,
East Lindsey District Council,http://statistics.data.gov.uk/id/local-authority/32UC,Economic & Tourism,Grounds Maintenance Contract (External),25/09/2014,IJ00036733,1925.00,VEOLIA ES (UK) LIMITED,
East Lindsey District Council,http://statistics.data.gov.uk/id/local-authority/32UC,Economic & Tourism,Grounds Maintenance Contract (External),25/09/2014,IJ00036734,1540.00,VEOLIA ES (UK) LIMITED,
East Lindsey District Council,http://statistics.data.gov.uk/id/local-authority/32UC,BALANCE  SHEET,Payroll-Cons Group Savings,25/09/2014,IJ00036825,570.00,ELDC CONSERVATIVE GROUP,
East Lindsey District Council,http://statistics.data.gov.uk/id/local-authority/32UC,Hsg Private Sector TL,Other Income,25/09/2014,IJ00036820,-354.06,ANDREW BLADES BUILDING SERVICES LTD,
East Lindsey District Council,http://statistics.data.gov.uk/id/local-authority/32UC,Hsg Private Sector TL,Grants and Contributions to Outside Bodies- No Service Recei,25/09/2014,IJ00036820,3965.44,ANDREW BLADES BUILDING SERVICES LTD,
East Lindsey District Council,http://statistics.data.gov.uk/id/local-authority/32UC,BALANCE  SHEET,Payroll-Gmbatu,25/09/2014,IJ00036835,708.12,GMB NATIONAL ADMINISTRATION UNIT,
East Lindsey District Council,http://statistics.data.gov.uk/id/local-authority/32UC,Theatre Manager,Service Charge - General,25/09/2014,IJ00036908,1338.18,PLAZA INVESTMENTS LTD,
East Lindsey District Council,http://statistics.data.gov.uk/id/local-authority/32UC,Neighbourhood Services,Agency Staff,25/09/2014,IJ00036762,1827.56,THE WORKSHOP (WISBECH) LIMITED,
East Lindsey District Council,http://statistics.data.gov.uk/id/local-authority/32UC,Neighbourhood Services,Agency Staff,25/09/2014,IJ00036762,1827.55,THE WORKSHOP (WISBECH) LIMITED,
East Lindsey District Council,http://statistics.data.gov.uk/id/local-authority/32UC,Neighbourhood Services,Agency Staff,25/09/2014,IJ00036766,1679.72,THE WORKSHOP (WISBECH) LIMITED,
East Lindsey District Council,http://statistics.data.gov.uk/id/local-authority/32UC,Neighbourhood Services,Agency Staff,25/09/2014,IJ00036766,1679.72,THE WORKSHOP (WISBECH) LIMITED,
East Lindsey District Council,http://statistics.data.gov.uk/id/local-authority/32UC,BALANCE  SHEET,VAT Customs and Excise,25/09/2014,IJ00036874,500.13,DWF LLP,
East Lindsey District Council,http://statistics.data.gov.uk/id/local-authority/32UC,BALANCE  SHEET,VAT Customs and Excise,25/09/2014,IJ00036875,551.45,DWF LLP,
East Lindsey District Council,http://statistics.data.gov.uk/id/local-authority/32UC,Economic & Tourism,Other Miscellaneous Expenses,25/09/2014,IJ00036752,1857.78,JOHNSTON PUBLISHING LTD,
East Lindsey District Council,http://statistics.data.gov.uk/id/local-authority/32UC,Neighbourhood Services,Buildings Maintenance - Responsive,25/09/2014,IJ00036855,1604.71,J TOMLINSON LTD,
East Lindsey District Council,http://statistics.data.gov.uk/id/local-authority/32UC,Neighbourhood Services,Buildings Maintenance - Responsive,25/09/2014,IJ00036856,1034.43,J TOMLINSON LTD,
East Lindsey District Council,http://statistics.data.gov.uk/id/local-authority/32UC,Theatre Manager,Buildings Maintenance - Responsive,25/09/2014,IJ00036857,1938.93,J TOMLINSON LTD,
East Lindsey District Council,http://statistics.data.gov.uk/id/local-authority/32UC,Building Control,Buildings Maintenance - Responsive,25/09/2014,IJ00036858,2302.78,J TOMLINSON LTD,
East Lindsey District Council,http://statistics.data.gov.uk/id/local-authority/32UC,Building Control,Buildings Maintenance - Responsive,25/09/2014,IJ00036872,59.60,J TOMLINSON LTD,
East Lindsey District Council,http://statistics.data.gov.uk/id/local-authority/32UC,Theatre Manager,Buildings Maintenance - Responsive,25/09/2014,IJ00036872,427.37,J TOMLINSON LTD,
East Lindsey District Council,http://statistics.data.gov.uk/id/local-authority/32UC,Theatre Manager,Buildings Maintenance - Responsive,25/09/2014,IJ00036872,144.21,J TOMLINSON LTD,
East Lindsey District Council,http://statistics.data.gov.uk/id/local-authority/32UC,TL Property,Buildings Maintenance - Responsive,25/09/2014,IJ00036872,262.36,J TOMLINSON LTD,
East Lindsey District Council,http://statistics.data.gov.uk/id/local-authority/32UC,Economic & Tourism,Buildings Maintenance - Responsive,25/09/2014,IJ00036872,136.59,J TOMLINSON LTD,
East Lindsey District Council,http://statistics.data.gov.uk/id/local-authority/32UC,Economic & Tourism,Buildings Maintenance - Responsive,25/09/2014,IJ00036872,214.90,J TOMLINSON LTD,
East Lindsey District Council,http://statistics.data.gov.uk/id/local-authority/32UC,Economic & Tourism,Buildings Maintenance - Responsive,25/09/2014,IJ00036872,79.12,J TOMLINSON LTD,
East Lindsey District Council,http://statistics.data.gov.uk/id/local-authority/32UC,Theatre Manager,Buildings Maintenance - Responsive,25/09/2014,IJ00036872,115.22,J TOMLINSON LTD,
East Lindsey District Council,http://statistics.data.gov.uk/id/local-authority/32UC,Leisure Operations,Buildings Maintenance - Responsive,25/09/2014,IJ00036872,1164.35,J TOMLINSON LTD,
East Lindsey District Council,http://statistics.data.gov.uk/id/local-authority/32UC,Leisure Operations,Buildings Maintenance - Responsive,25/09/2014,IJ00036872,273.39,J TOMLINSON LTD,
East Lindsey District Council,http://statistics.data.gov.uk/id/local-authority/32UC,Leisure Operations,Buildings Maintenance - Responsive,25/09/2014,IJ00036872,434.59,J TOMLINSON LTD,
East Lindsey District Council,http://statistics.data.gov.uk/id/local-authority/32UC,Neighbourhood Services,Buildings Maintenance - Responsive,25/09/2014,IJ00036872,432.90,J TOMLINSON LTD,
East Lindsey District Council,http://statistics.data.gov.uk/id/local-authority/32UC,Neighbourhood Services,Buildings Maintenance - Responsive,25/09/2014,IJ00036872,242.07,J TOMLINSON LTD,
East Lindsey District Council,http://statistics.data.gov.uk/id/local-authority/32UC,Neighbourhood Services,Buildings Maintenance - Responsive,25/09/2014,IJ00036872,390.15,J TOMLINSON LTD,
East Lindsey District Council,http://statistics.data.gov.uk/id/local-authority/32UC,Neighbourhood Services,Buildings Maintenance - Responsive,25/09/2014,IJ00036872,295.32,J TOMLINSON LTD,
East Lindsey District Council,http://statistics.data.gov.uk/id/local-authority/32UC,Neighbourhood Services,Buildings Maintenance - Responsive,25/09/2014,IJ00036872,381.86,J TOMLINSON LTD,
East Lindsey District Council,http://statistics.data.gov.uk/id/local-authority/32UC,Neighbourhood Services,Buildings Maintenance - Responsive,25/09/2014,IJ00036872,696.20,J TOMLINSON LTD,
East Lindsey District Council,http://statistics.data.gov.uk/id/local-authority/32UC,Neighbourhood Services,Buildings Maintenance - Responsive,25/09/2014,IJ00036872,445.30,J TOMLINSON LTD,
East Lindsey District Council,http://statistics.data.gov.uk/id/local-authority/32UC,Neighbourhood Services,Buildings Maintenance - Responsive,25/09/2014,IJ00036872,224.98,J TOMLINSON LTD,
East Lindsey District Council,http://statistics.data.gov.uk/id/local-authority/32UC,Neighbourhood Services,Buildings Maintenance - Responsive,25/09/2014,IJ00036872,20.00,J TOMLINSON LTD,
East Lindsey District Council,http://statistics.data.gov.uk/id/local-authority/32UC,Neighbourhood Services,Buildings Maintenance - Responsive,25/09/2014,IJ00036872,533.35,J TOMLINSON LTD,
East Lindsey District Council,http://statistics.data.gov.uk/id/local-authority/32UC,Theatre Manager,Buildings Maintenance - Responsive,25/09/2014,IJ00036872,90.29,J TOMLINSON LTD,
East Lindsey District Council,http://statistics.data.gov.uk/id/local-authority/32UC,Economic & Tourism,Buildings Maintenance - Responsive,25/09/2014,IJ00036872,88.25,J TOMLINSON LTD,
East Lindsey District Council,http://statistics.data.gov.uk/id/local-authority/32UC,Economic & Tourism,Buildings Maintenance - Responsive,25/09/2014,IJ00036872,21.00,J TOMLINSON LTD,
East Lindsey District Council,http://statistics.data.gov.uk/id/local-authority/32UC,Neighbourhood Services,Buildings Maintenance - Responsive,25/09/2014,IJ00036872,190.99,J TOMLINSON LTD,
East Lindsey District Council,http://statistics.data.gov.uk/id/local-authority/32UC,TL Property,Buildings Maintenance - Responsive,25/09/2014,IJ00036872,932.32,J TOMLINSON LTD,
East Lindsey District Council,http://statistics.data.gov.uk/id/local-authority/32UC,TL Property,Buildings Maintenance - Responsive,25/09/2014,IJ00036872,167.99,J TOMLINSON LTD,
East Lindsey District Council,http://statistics.data.gov.uk/id/local-authority/32UC,TL Property,Buildings Maintenance - Responsive,25/09/2014,IJ00036872,341.75,J TOMLINSON LTD,
East Lindsey District Council,http://statistics.data.gov.uk/id/local-authority/32UC,TL Property,Buildings Maintenance - Responsive,25/09/2014,IJ00036872,151.82,J TOMLINSON LTD,
East Lindsey District Council,http://statistics.data.gov.uk/id/local-authority/32UC,TL Property,Buildings Maintenance - Responsive,25/09/2014,IJ00036872,1059.65,J TOMLINSON LTD,
East Lindsey District Council,http://statistics.data.gov.uk/id/local-authority/32UC,TL Property,Buildings Maintenance - Responsive,25/09/2014,IJ00036872,1274.96,J TOMLINSON LTD,
East Lindsey District Council,http://statistics.data.gov.uk/id/local-authority/32UC,TL Property,Buildings Maintenance - Responsive,25/09/2014,IJ00036872,159.02,J TOMLINSON LTD,
East Lindsey District Council,http://statistics.data.gov.uk/id/local-authority/32UC,TL Property,Buildings Maintenance - Responsive,25/09/2014,IJ00036872,174.42,J TOMLINSON LTD,
East Lindsey District Council,http://statistics.data.gov.uk/id/local-authority/32UC,Leisure Operations,Buildings Maintenance - Responsive,25/09/2014,IJ00036872,20.00,J TOMLINSON LTD,
East Lindsey District Council,http://statistics.data.gov.uk/id/local-authority/32UC,Neighbourhood Services,Buildings Maintenance - Responsive,25/09/2014,IJ00036872,138.13,J TOMLINSON LTD,
East Lindsey District Council,http://statistics.data.gov.uk/id/local-authority/32UC,TL Property,Buildings Maintenance - Responsive,25/09/2014,IJ00036872,336.36,J TOMLINSON LTD,
East Lindsey District Council,http://statistics.data.gov.uk/id/local-authority/32UC,Leisure Operations,Buildings Maintenance - Responsive,25/09/2014,IJ00036872,228.01,J TOMLINSON LTD,
East Lindsey District Council,http://statistics.data.gov.uk/id/local-authority/32UC,Neighbourhood Services,Buildings Maintenance - Responsive,25/09/2014,IJ00036872,50.34,J TOMLINSON LTD,
East Lindsey District Council,http://statistics.data.gov.uk/id/local-authority/32UC,Leisure Operations,Buildings Maintenance - Responsive,25/09/2014,IJ00036872,99.75,J TOMLINSON LTD,
East Lindsey District Council,http://statistics.data.gov.uk/id/local-authority/32UC,Neighbourhood Services,Buildings Maintenance - Responsive,25/09/2014,IJ00036872,241.63,J TOMLINSON LTD,
East Lindsey District Council,http://statistics.data.gov.uk/id/local-authority/32UC,Enforcement Team Leader,Buildings Maintenance - Responsive,25/09/2014,IJ00036872,71.00,J TOMLINSON LTD,
East Lindsey District Council,http://statistics.data.gov.uk/id/local-authority/32UC,TL Property,Buildings Maintenance - Responsive,25/09/2014,IJ00036872,55.28,J TOMLINSON LTD,
East Lindsey District Council,http://statistics.data.gov.uk/id/local-authority/32UC,Neighbourhood Services,Buildings Maintenance - Responsive,25/09/2014,IJ00036872,459.52,J TOMLINSON LTD,
East Lindsey District Council,http://statistics.data.gov.uk/id/local-authority/32UC,Neighbourhood Services,Buildings Maintenance - Responsive,25/09/2014,IJ00036872,37.59,J TOMLINSON LTD,
East Lindsey District Council,http://statistics.data.gov.uk/id/local-authority/32UC,Neighbourhood Services,Buildings Maintenance - Responsive,25/09/2014,IJ00036872,209.04,J TOMLINSON LTD,
East Lindsey District Council,http://statistics.data.gov.uk/id/local-authority/32UC,Neighbourhood Services,Buildings Maintenance - Responsive,25/09/2014,IJ00036872,48.79,J TOMLINSON LTD,
East Lindsey District Council,http://statistics.data.gov.uk/id/local-authority/32UC,Neighbourhood Services,Buildings Maintenance - Responsive,25/09/2014,IJ00036872,30.34,J TOMLINSON LTD,
East Lindsey District Council,http://statistics.data.gov.uk/id/local-authority/32UC,Neighbourhood Services,Buildings Maintenance - Responsive,25/09/2014,IJ00036872,133.24,J TOMLINSON LTD,
East Lindsey District Council,http://statistics.data.gov.uk/id/local-authority/32UC,Neighbourhood Services,Buildings Maintenance - Responsive,25/09/2014,IJ00036872,21.00,J TOMLINSON LTD,
East Lindsey District Council,http://statistics.data.gov.uk/id/local-authority/32UC,Neighbourhood Services,Buildings Maintenance - Responsive,25/09/2014,IJ00036872,333.98,J TOMLINSON LTD,
East Lindsey District Council,http://statistics.data.gov.uk/id/local-authority/32UC,Leisure Operations,Buildings Maintenance - Responsive,25/09/2014,IJ00036872,266.92,J TOMLINSON LTD,
East Lindsey District Council,http://statistics.data.gov.uk/id/local-authority/32UC,TL Property,Buildings Maintenance - Responsive,25/09/2014,IJ00036872,138.91,J TOMLINSON LTD,
East Lindsey District Council,http://statistics.data.gov.uk/id/local-authority/32UC,TL Property,Buildings Maintenance - Responsive,25/09/2014,IJ00036872,400.00,J TOMLINSON LTD,
East Lindsey District Council,http://statistics.data.gov.uk/id/local-authority/32UC,TL Property,Buildings Maintenance - Responsive,25/09/2014,IJ00036872,526.51,J TOMLINSON LTD,
East Lindsey District Council,http://statistics.data.gov.uk/id/local-authority/32UC,Enforcement Team Leader,Buildings Maintenance - Responsive,25/09/2014,IJ00036872,481.14,J TOMLINSON LTD,
East Lindsey District Council,http://statistics.data.gov.uk/id/local-authority/32UC,Neighbourhood Services,Buildings Maintenance - Responsive,25/09/2014,IJ00036872,147.03,J TOMLINSON LTD,
East Lindsey District Council,http://statistics.data.gov.uk/id/local-authority/32UC,Enforcement Team Leader,Buildings Maintenance - Responsive,25/09/2014,IJ00036872,91.63,J TOMLINSON LTD,
East Lindsey District Council,http://statistics.data.gov.uk/id/local-authority/32UC,Leisure Operations,Buildings Maintenance - Responsive,25/09/2014,IJ00036872,95.96,J TOMLINSON LTD,
East Lindsey District Council,http://statistics.data.gov.uk/id/local-authority/32UC,Enforcement Team Leader,Buildings Maintenance - Responsive,25/09/2014,IJ00036872,193.99,J TOMLINSON LTD,
East Lindsey District Council,http://statistics.data.gov.uk/id/local-authority/32UC,TL Property,Buildings Maintenance - Responsive,25/09/2014,IJ00036872,621.58,J TOMLINSON LTD,
East Lindsey District Council,http://statistics.data.gov.uk/id/local-authority/32UC,Neighbourhood Services,Buildings Maintenance - Responsive,25/09/2014,IJ00036872,31.50,J TOMLINSON LTD,
East Lindsey District Council,http://statistics.data.gov.uk/id/local-authority/32UC,Neighbourhood Services,Buildings Maintenance - Responsive,25/09/2014,IJ00036872,249.85,J TOMLINSON LTD,
East Lindsey District Council,http://statistics.data.gov.uk/id/local-authority/32UC,Neighbourhood Services,Buildings Maintenance - Responsive,25/09/2014,IJ00036872,327.36,J TOMLINSON LTD,
East Lindsey District Council,http://statistics.data.gov.uk/id/local-authority/32UC,Neighbourhood Services,Buildings Maintenance - Responsive,25/09/2014,IJ00036872,343.99,J TOMLINSON LTD,
East Lindsey District Council,http://statistics.data.gov.uk/id/local-authority/32UC,Neighbourhood Services,Buildings Maintenance - Responsive,25/09/2014,IJ00036872,51.50,J TOMLINSON LTD,
East Lindsey District Council,http://statistics.data.gov.uk/id/local-authority/32UC,Neighbourhood Services,Buildings Maintenance - Responsive,25/09/2014,IJ00036872,26.25,J TOMLINSON LTD,
East Lindsey District Council,http://statistics.data.gov.uk/id/local-authority/32UC,Neighbourhood Services,Buildings Maintenance - Responsive,25/09/2014,IJ00036872,47.25,J TOMLINSON LTD,
East Lindsey District Council,http://statistics.data.gov.uk/id/local-authority/32UC,Enforcement Team Leader,Buildings Maintenance - Responsive,25/09/2014,IJ00036872,42.00,J TOMLINSON LTD,
East Lindsey District Council,http://statistics.data.gov.uk/id/local-authority/32UC,TL Property,Other Miscellaneous Expenses,25/09/2014,IJ00036872,451.62,J TOMLINSON LTD,
East Lindsey District Council,http://statistics.data.gov.uk/id/local-authority/32UC,Enforcement Team Leader,Buildings Maintenance - Responsive,25/09/2014,IJ00036872,155.92,J TOMLINSON LTD,
East Lindsey District Council,http://statistics.data.gov.uk/id/local-authority/32UC,TL Property,Buildings Maintenance - Responsive,25/09/2014,IJ00036872,89.25,J TOMLINSON LTD,
East Lindsey District Council,http://statistics.data.gov.uk/id/local-authority/32UC,TL Property,Buildings Maintenance - Responsive,25/09/2014,IJ00036872,370.80,J TOMLINSON LTD,
East Lindsey District Council,http://statistics.data.gov.uk/id/local-authority/32UC,Leisure Operations,Course Fees,25/09/2014,IJ00036901,750.00,JOHNSON TRAINING,
East Lindsey District Council,http://statistics.data.gov.uk/id/local-authority/32UC,Neighbourhood Services,Water and Sewerage Charges,25/09/2014,IJ00036843,892.44,ANGLIAN WATER,
East Lindsey District Council,http://statistics.data.gov.uk/id/local-authority/32UC,Leisure Operations,Water and Sewerage Charges,25/09/2014,IJ00036846,2880.05,ANGLIAN WATER,
East Lindsey District Council,http://statistics.data.gov.uk/id/local-authority/32UC,Neighbourhood Services,Water and Sewerage Charges,25/09/2014,IJ00036847,1257.98,ANGLIAN WATER,
East Lindsey District Council,http://statistics.data.gov.uk/id/local-authority/32UC,Neighbourhood Services,Water and Sewerage Charges,25/09/2014,IJ00036848,1546.61,ANGLIAN WATER,
East Lindsey District Council,http://statistics.data.gov.uk/id/local-authority/32UC,Leisure Operations,Water and Sewerage Charges,25/09/2014,IJ00036849,918.06,ANGLIAN WATER,
East Lindsey District Council,http://statistics.data.gov.uk/id/local-authority/32UC,Economic & Tourism,Other Miscellaneous Expenses,25/09/2014,IJ00036741,944.45,Rhubarb Theatre,
East Lindsey District Council,http://statistics.data.gov.uk/id/local-authority/32UC,Economic & Tourism,Other Miscellaneous Expenses,25/09/2014,IJ00036761,720.00,GREAT CARLTON PAROCHIAL CHURCH COUNCIL,
East Lindsey District Council,http://statistics.data.gov.uk/id/local-authority/32UC,Theatre Manager,Performers and Entertainers Fees,25/09/2014,IJ00036890,6328.30,Graham Platts Management Client Account,
East Lindsey District Council,http://statistics.data.gov.uk/id/local-authority/32UC,Theatre Manager,Performers and Entertainers Fees,25/09/2014,IJ00036890,-318.00,Graham Platts Management Client Account,
East Lindsey District Council,http://statistics.data.gov.uk/id/local-authority/32UC,Information Technology,Computer Hardware Maintenance,25/09/2014,IJ00036911,1718.25,REPROTEC LTD,
East Lindsey District Council,http://statistics.data.gov.uk/id/local-authority/32UC,Development Control,Computer Hardware Maintenance,25/09/2014,IJ00036911,1718.25,REPROTEC LTD,
East Lindsey District Council,http://statistics.data.gov.uk/id/local-authority/32UC,Neighbourhood Services,Materials and Consumables,25/09/2014,IJ00036795,1120.72,PROBRUSH,
East Lindsey District Council,http://statistics.data.gov.uk/id/local-authority/32UC,Environment Team Leader,Other Private Contractors,25/09/2014,IJ00036918,1705.00,LINCOLNSHIRE CO-OPERATIVE LTD,
East Lindsey District Council,http://statistics.data.gov.uk/id/local-authority/32UC,Neighbourhood Services,Clothing Uniforms And Laundry,25/09/2014,IJ00036787,530.80,SAFETY MANAGEMENT INT GROUP,
East Lindsey District Council,http://statistics.data.gov.uk/id/local-authority/32UC,Leisure Operations,Materials and Consumables,25/09/2014,IJ00036815,910.00,PAC WRISTBANDS LTD,
East Lindsey District Council,http://statistics.data.gov.uk/id/local-authority/32UC,Hsg Private Sector TL,Other Income,25/09/2014,IJ00036818,-1015.07,ANDREW WRISDALE BUILDING CONTRACTOR,
East Lindsey District Council,http://statistics.data.gov.uk/id/local-authority/32UC,Hsg Private Sector TL,Other Income,25/09/2014,IJ00036818,1973.99,ANDREW WRISDALE BUILDING CONTRACTOR,
East Lindsey District Council,http://statistics.data.gov.uk/id/local-authority/32UC,Hsg Private Sector TL,Other Income,25/09/2014,IJ00036819,-476.78,ANDREW WRISDALE BUILDING CONTRACTOR,
East Lindsey District Council,http://statistics.data.gov.uk/id/local-authority/32UC,Hsg Private Sector TL,Grants and Contributions to Outside Bodies- No Service Recei,25/09/2014,IJ00036819,5339.92,ANDREW WRISDALE BUILDING CONTRACTOR,
East Lindsey District Council,http://statistics.data.gov.uk/id/local-authority/32UC,"Performance, Governance & Commissioning",Grants and Contributions to Outside Bodies- No Service Recei,25/09/2014,IJ00036798,800.00,SPILSBY LOCAL AMATEUR PANTOMIME SOCIETY,
East Lindsey District Council,http://statistics.data.gov.uk/id/local-authority/32UC,"Performance, Governance & Commissioning",Grants and Contributions to Outside Bodies- No Service Recei,25/09/2014,IJ00036754,1050.00,Sutton On Sea First Residents Association,
East Lindsey District Council,http://statistics.data.gov.uk/id/local-authority/32UC,BALANCE  SHEET,Lincolnshire Credit Union,25/09/2014,IJ00036836,695.00,Lincolnshire Credit Union Ltd,
East Lindsey District Council,http://statistics.data.gov.uk/id/local-authority/32UC,"Performance, Governance & Commissioning",Staff Training Expenses,25/09/2014,IJ00036751,1050.00,Xpress Software Solutions Ltd,
East Lindsey District Council,http://statistics.data.gov.uk/id/local-authority/32UC,Cultural & Related Services,Professional & Contractors Fees,25/09/2014,IJ00036728,2225.00,Traffic Managements Services Retford Ltd,
East Lindsey District Council,http://statistics.data.gov.uk/id/local-authority/32UC,Waste Services Manager,Agency Staff,25/09/2014,IJ00036731,1509.03,BIBBY FACTORS YORKSHIRE LIMITED,
East Lindsey District Council,http://statistics.data.gov.uk/id/local-authority/32UC,Leisure Operations,Advertising - Events,25/09/2014,IJ00036796,2200.00,Fifteen Design Limited,
East Lindsey District Council,http://statistics.data.gov.uk/id/local-authority/32UC,Theatre Manager,Performers and Entertainers Fees,25/09/2014,IJ00036891,2045.34,World On Stage Ltd,
East Lindsey District Council,http://statistics.data.gov.uk/id/local-authority/32UC,Theatre Manager,Performers and Entertainers Fees,25/09/2014,IJ00036891,-495.83,World On Stage Ltd,
East Lindsey District Council,http://statistics.data.gov.uk/id/local-authority/32UC,Economic & Tourism,Grants and Contributions to Outside Bodies- No Service Recei,25/09/2014,IJ00036876,5348.55,KIRKS QUALITY FOODS,
East Lindsey District Council,http://statistics.data.gov.uk/id/local-authority/32UC,Economic & Tourism,Other Miscellaneous Expenses,25/09/2014,IJ00036873,4829.00,Buckley Brothers,
East Lindsey District Council,http://statistics.data.gov.uk/id/local-authority/32UC,Hsg Private Sector TL,Grants and Contributions to Outside Bodies- No Service Recei,25/09/2014,IJ00036822,5372.86,REDACTED PERSONAL INFORMATION,REDACTED
East Lindsey District Council,http://statistics.data.gov.uk/id/local-authority/32UC,"Performance, Governance & Commissioning",Grants and Contributions to Outside Bodies- No Service Recei,25/09/2014,IJ00036897,1000.00,St Helens Parochial Church Council,
East Lindsey District Council,http://statistics.data.gov.uk/id/local-authority/32UC,"Performance, Governance & Commissioning",Grants and Contributions to Outside Bodies- No Service Recei,25/09/2014,IJ00036904,500.00,Skegness District Girl Guides,
East Lindsey District Council,http://statistics.data.gov.uk/id/local-authority/32UC,Development Control,Professional & Contractors Fees,25/09/2014,IJ00036910,14500.00,Mark Caudwell Ltd,
East Lindsey District Council,http://statistics.data.gov.uk/id/local-authority/32UC,Theatre Manager,Performers and Entertainers Fees,25/09/2014,IJ00036919,3000.00,Channel 5 Broadcasting Ltd,
